{"text_format":"1","workbook":"xlsx","n_sheets":8,"sheets":["Team Info","Team List Summary Form","Team Uniform Order","Principal Permission","Team Checklist","Training Attendance","Team Contacts","Sheet2"],"not_rendered":{"charts":0,"images":2,"macros":1,"external_links":0,"defined_names":58,"comments":0,"pivot_tables":0},"unopened":[],"bounds":{"document_bytes":16777216,"sheet_cells":100000,"rows_first":2000,"rows_last":500,"rows_between":2000,"halvings":0,"cell_chars":16384,"cell_head_chars":4096},"cells_cut":0,"cells_raw":0,"read":"whole","date_system":"1900"}

{"sheet":"Team Info","index":0,"n_rows":46,"n_cols":14,"rows_kept":46,"cut":false,"hidden":false,"merged":[[3,2,3,5],[3,11,3,12],[5,2,5,5],[8,3,8,4],[8,9,8,13],[9,9,9,13],[10,9,10,13],[11,9,11,13],[12,9,12,13],[12,3,12,4],[9,3,9,4],[10,3,10,4],[11,3,11,4]]}
[]
[{"$f":"\"Sport Team: \"&C4","v":"Sport Team: "}]
[]
["Team:",null,null,null,null,null,null,{"$f":"VLOOKUP(C4,Sheet2!A2:H75,7)","v":{"$error":"#N/A"}},null,null,"As at:",{"$f":"NOW()","v":"2024-03-26T11:28:25.980"}]
[]
["Region:",null,"Sunshine Coast",null,null,null,null,{"$f":"VLOOKUP(C4,Sheet2!A2:H75,8)","v":{"$error":"#N/A"}}]
[]
["Team Officials"]
["Position","First Name","Last name","School",null,"Gender (M/F)",null,"Consent","Mobile Phone","Email"]
[]
[]
[]
[]
[]
["Team Members"]
["Playing No","Role","First Name","Last Name","School","Gender (M/F)","Date of Birth DD/MM/YY","Replacement Code","Details of name consent",{"$f":"VLOOKUP(C4,Sheet2!A2:F75,5,0)","v":{"$error":"#N/A"}},"QTY",{"$f":"VLOOKUP(C4,Sheet2!A2:F75,6,0)","v":{"$error":"#N/A"}},"QTY","Status"]
[1,{"$f":"IF(ISBLANK(C17),\"\",\"Student\")","v":""}]
[2,""]
[3,""]
[4,""]
[5,""]
[6,""]
[7,""]
[8,""]
[9,""]
[10,""]
[11,""]
[12,""]
[13,""]
[14,""]
[15,""]
[16,""]
[17,{"$f":"IF(ISBLANK(C33),\"\",\"Student\")","v":""}]
[18,""]
[19,""]
[20,""]
[21,""]
[22,""]
[23,""]
[24,""]
[25,""]
[26,""]
[27,""]
[28,""]
[29,""]
[30,""]

{"sheet":"Team List Summary Form","index":1,"n_rows":53,"n_cols":9,"rows_kept":53,"cut":false,"hidden":false,"merged":[[51,1,51,2],[52,1,52,2],[53,1,54,2],[9,1,9,2],[9,3,9,4],[47,1,48,2],[48,3,48,7],[49,1,50,2],[49,3,50,7],[52,3,52,4],[1,1,1,8],[3,7,4,8],[5,1,5,2],[5,3,5,4],[7,1,7,2],[7,3,7,4]]}
[]
[null,"Queensland Representative School Sport Team List Summary Form"]
[null,null,"**This is to be completed at district, regional and state levels of the representative sport pathway"]
[]
[]
[null,"District/Region (if required):",null,{"$f":"'Team Info'!C6","v":"Sunshine Coast"}]
[]
[null,"Sport:",null,{"$f":"VLOOKUP('Team Info'!C4,Sheet2!A2:H75,2)","v":{"$error":"#N/A"}},null,null,null,"Age Group:",{"$f":"VLOOKUP('Team Info'!C4,Sheet2!A2:H75,3)","v":{"$error":"#N/A"}}]
[]
[null,"Submitted to:",null,null,null,null,null,"Gender:",{"$f":"VLOOKUP('Team Info'!C4,Sheet2!A2:H75,4)","v":{"$error":"#N/A"}}]
[]
[]
[null,"Playing Number","Role"," Name (First Name Surname)","School","Gender M/F","DOB DD/MM/YY","Replacement code for name if required.","Details of Name Consent"]
[null,null,{"$f":"IF(ISBLANK('Team Info'!A10),\"\",'Team Info'!A10)","v":""},{"$f":"IF(ISBLANK('Team Info'!B10),\"\",'Team Info'!B10&\" \"&'Team Info'!C10)","v":""},{"$f":"IF(ISBLANK('Team Info'!D10),\"\",'Team Info'!D10)","v":""},{"$f":"IF(ISBLANK('Team Info'!F10),\"\",'Team Info'!F10)","v":""},null,null,{"$f":"IF(ISBLANK('Team Info'!H10),\"\",'Team Info'!H10)","v":""}]
[null,null,{"$f":"IF(ISBLANK('Team Info'!A11),\"\",'Team Info'!A11)","v":""},{"$f":"IF(ISBLANK('Team Info'!B11),\"\",'Team Info'!B11&\" \"&'Team Info'!C11)","v":""},{"$f":"IF(ISBLANK('Team Info'!D11),\"\",'Team Info'!D11)","v":""},{"$f":"IF(ISBLANK('Team Info'!F11),\"\",'Team Info'!F11)","v":""},null,null,{"$f":"IF(ISBLANK('Team Info'!H11),\"\",'Team Info'!H11)","v":""}]
[null,null,{"$f":"IF(ISBLANK('Team Info'!A12),\"\",'Team Info'!A12)","v":""},{"$f":"IF(ISBLANK('Team Info'!B12),\"\",'Team Info'!B12&\" \"&'Team Info'!C12)","v":""},{"$f":"IF(ISBLANK('Team Info'!D12),\"\",'Team Info'!D12)","v":""},{"$f":"IF(ISBLANK('Team Info'!F12),\"\",'Team Info'!F12)","v":""},null,null,{"$f":"IF(ISBLANK('Team Info'!H12),\"\",'Team Info'!H12)","v":""}]
[null,null,{"$f":"IF(ISBLANK('Team Info'!A13),\"\",'Team Info'!A13)","v":""},{"$f":"IF(ISBLANK('Team Info'!B13),\"\",'Team Info'!B13&\" \"&'Team Info'!C13)","v":""},{"$f":"IF(ISBLANK('Team Info'!D13),\"\",'Team Info'!D13)","v":""},{"$f":"IF(ISBLANK('Team Info'!F13),\"\",'Team Info'!F13)","v":""},null,null,{"$f":"IF(ISBLANK('Team Info'!H13),\"\",'Team Info'!H13)","v":""}]
[null,{"$f":"IF(ISBLANK('Team Info'!A17),\"\",'Team Info'!A17)","v":1},{"$f":"IF(ISBLANK('Team Info'!C17),\"\",\"Student\")","v":""},{"$f":"IF(ISBLANK('Team Info'!C17),\"\",'Team Info'!C17&\" \"&'Team Info'!D17)","v":""},{"$f":"IF(ISBLANK('Team Info'!E17),\"\",'Team Info'!E17)","v":""},{"$f":"IF(ISBLANK('Team Info'!F17),\"\",'Team Info'!F17)","v":""},{"$f":"IF(ISBLANK('Team Info'!G17),\"\",'Team Info'!G17)","v":""},{"$f":"IF('Team Info'!N17=\"Withdrawn\",\"** WITHDRAWN **\", \"\")","v":""},{"$f":"IF(ISBLANK('Team Info'!I17),\"\",'Team Info'!I17)","v":""}]
[null,{"$f":"IF(ISBLANK('Team Info'!A18),\"\",'Team Info'!A18)","v":2},{"$f":"IF(ISBLANK('Team Info'!C18),\"\",\"Student\")","v":""},{"$f":"IF(ISBLANK('Team Info'!C18),\"\",'Team Info'!C18&\" \"&'Team Info'!D18)","v":""},{"$f":"IF(ISBLANK('Team Info'!E18),\"\",'Team Info'!E18)","v":""},{"$f":"IF(ISBLANK('Team Info'!F18),\"\",'Team Info'!F18)","v":""},{"$f":"IF(ISBLANK('Team Info'!G18),\"\",'Team Info'!G18)","v":""},{"$f":"IF('Team Info'!N18=\"Withdrawn\",\"** WITHDRAWN **\", \"\")","v":""},{"$f":"IF(ISBLANK('Team Info'!I18),\"\",'Team Info'!I18)","v":""}]
[null,{"$f":"IF(ISBLANK('Team Info'!A19),\"\",'Team Info'!A19)","v":3},{"$f":"IF(ISBLANK('Team Info'!C19),\"\",\"Student\")","v":""},{"$f":"IF(ISBLANK('Team Info'!C19),\"\",'Team Info'!C19&\" \"&'Team Info'!D19)","v":""},{"$f":"IF(ISBLANK('Team Info'!E19),\"\",'Team Info'!E19)","v":""},{"$f":"IF(ISBLANK('Team Info'!F19),\"\",'Team Info'!F19)","v":""},{"$f":"IF(ISBLANK('Team Info'!G19),\"\",'Team Info'!G19)","v":""},{"$f":"IF('Team Info'!N19=\"Withdrawn\",\"** WITHDRAWN **\", \"\")","v":""},{"$f":"IF(ISBLANK('Team Info'!I19),\"\",'Team Info'!I19)","v":""}]
[null,{"$f":"IF(ISBLANK('Team Info'!A20),\"\",'Team Info'!A20)","v":4},{"$f":"IF(ISBLANK('Team Info'!C20),\"\",\"Student\")","v":""},{"$f":"IF(ISBLANK('Team Info'!C20),\"\",'Team Info'!C20&\" \"&'Team Info'!D20)","v":""},{"$f":"IF(ISBLANK('Team Info'!E20),\"\",'Team Info'!E20)","v":""},{"$f":"IF(ISBLANK('Team Info'!F20),\"\",'Team Info'!F20)","v":""},{"$f":"IF(ISBLANK('Team Info'!G20),\"\",'Team Info'!G20)","v":""},{"$f":"IF('Team Info'!N20=\"Withdrawn\",\"** WITHDRAWN **\", \"\")","v":""},{"$f":"IF(ISBLANK('Team Info'!I20),\"\",'Team Info'!I20)","v":""}]
[null,{"$f":"IF(ISBLANK('Team Info'!A21),\"\",'Team Info'!A21)","v":5},{"$f":"IF(ISBLANK('Team Info'!C21),\"\",\"Student\")","v":""},{"$f":"IF(ISBLANK('Team Info'!C21),\"\",'Team Info'!C21&\" \"&'Team Info'!D21)","v":""},{"$f":"IF(ISBLANK('Team Info'!E21),\"\",'Team Info'!E21)","v":""},{"$f":"IF(ISBLANK('Team Info'!F21),\"\",'Team Info'!F21)","v":""},{"$f":"IF(ISBLANK('Team Info'!G21),\"\",'Team Info'!G21)","v":""},{"$f":"IF('Team Info'!N21=\"Withdrawn\",\"** WITHDRAWN **\", \"\")","v":""},{"$f":"IF(ISBLANK('Team Info'!I21),\"\",'Team Info'!I21)","v":""}]
[null,{"$f":"IF(ISBLANK('Team Info'!A22),\"\",'Team Info'!A22)","v":6},{"$f":"IF(ISBLANK('Team Info'!C22),\"\",\"Student\")","v":""},{"$f":"IF(ISBLANK('Team Info'!C22),\"\",'Team Info'!C22&\" \"&'Team Info'!D22)","v":""},{"$f":"IF(ISBLANK('Team Info'!E22),\"\",'Team Info'!E22)","v":""},{"$f":"IF(ISBLANK('Team Info'!F22),\"\",'Team Info'!F22)","v":""},{"$f":"IF(ISBLANK('Team Info'!G22),\"\",'Team Info'!G22)","v":""},{"$f":"IF('Team Info'!N22=\"Withdrawn\",\"** WITHDRAWN **\", \"\")","v":""},{"$f":"IF(ISBLANK('Team Info'!I22),\"\",'Team Info'!I22)","v":""}]
[null,{"$f":"IF(ISBLANK('Team Info'!A23),\"\",'Team Info'!A23)","v":7},{"$f":"IF(ISBLANK('Team Info'!C23),\"\",\"Student\")","v":""},{"$f":"IF(ISBLANK('Team Info'!C23),\"\",'Team Info'!C23&\" \"&'Team Info'!D23)","v":""},{"$f":"IF(ISBLANK('Team Info'!E23),\"\",'Team Info'!E23)","v":""},{"$f":"IF(ISBLANK('Team Info'!F23),\"\",'Team Info'!F23)","v":""},{"$f":"IF(ISBLANK('Team Info'!G23),\"\",'Team Info'!G23)","v":""},{"$f":"IF('Team Info'!N23=\"Withdrawn\",\"** WITHDRAWN **\", \"\")","v":""},{"$f":"IF(ISBLANK('Team Info'!I23),\"\",'Team Info'!I23)","v":""}]
[null,{"$f":"IF(ISBLANK('Team Info'!A24),\"\",'Team Info'!A24)","v":8},{"$f":"IF(ISBLANK('Team Info'!C24),\"\",\"Student\")","v":""},{"$f":"IF(ISBLANK('Team Info'!C24),\"\",'Team Info'!C24&\" \"&'Team Info'!D24)","v":""},{"$f":"IF(ISBLANK('Team Info'!E24),\"\",'Team Info'!E24)","v":""},{"$f":"IF(ISBLANK('Team Info'!F24),\"\",'Team Info'!F24)","v":""},{"$f":"IF(ISBLANK('Team Info'!G24),\"\",'Team Info'!G24)","v":""},{"$f":"IF('Team Info'!N24=\"Withdrawn\",\"** WITHDRAWN **\", \"\")","v":""},{"$f":"IF(ISBLANK('Team Info'!I24),\"\",'Team Info'!I24)","v":""}]
[null,{"$f":"IF(ISBLANK('Team Info'!A25),\"\",'Team Info'!A25)","v":9},{"$f":"IF(ISBLANK('Team Info'!C25),\"\",\"Student\")","v":""},{"$f":"IF(ISBLANK('Team Info'!C25),\"\",'Team Info'!C25&\" \"&'Team Info'!D25)","v":""},{"$f":"IF(ISBLANK('Team Info'!E25),\"\",'Team Info'!E25)","v":""},{"$f":"IF(ISBLANK('Team Info'!F25),\"\",'Team Info'!F25)","v":""},{"$f":"IF(ISBLANK('Team Info'!G25),\"\",'Team Info'!G25)","v":""},{"$f":"IF('Team Info'!N25=\"Withdrawn\",\"** WITHDRAWN **\", \"\")","v":""},{"$f":"IF(ISBLANK('Team Info'!I25),\"\",'Team Info'!I25)","v":""}]
[null,{"$f":"IF(ISBLANK('Team Info'!A26),\"\",'Team Info'!A26)","v":10},{"$f":"IF(ISBLANK('Team Info'!C26),\"\",\"Student\")","v":""},{"$f":"IF(ISBLANK('Team Info'!C26),\"\",'Team Info'!C26&\" \"&'Team Info'!D26)","v":""},{"$f":"IF(ISBLANK('Team Info'!E26),\"\",'Team Info'!E26)","v":""},{"$f":"IF(ISBLANK('Team Info'!F26),\"\",'Team Info'!F26)","v":""},{"$f":"IF(ISBLANK('Team Info'!G26),\"\",'Team Info'!G26)","v":""},{"$f":"IF('Team Info'!N26=\"Withdrawn\",\"** WITHDRAWN **\", \"\")","v":""},{"$f":"IF(ISBLANK('Team Info'!I26),\"\",'Team Info'!I26)","v":""}]
[null,{"$f":"IF(ISBLANK('Team Info'!A27),\"\",'Team Info'!A27)","v":11},{"$f":"IF(ISBLANK('Team Info'!C27),\"\",\"Student\")","v":""},{"$f":"IF(ISBLANK('Team Info'!C27),\"\",'Team Info'!C27&\" \"&'Team Info'!D27)","v":""},{"$f":"IF(ISBLANK('Team Info'!E27),\"\",'Team Info'!E27)","v":""},{"$f":"IF(ISBLANK('Team Info'!F27),\"\",'Team Info'!F27)","v":""},{"$f":"IF(ISBLANK('Team Info'!G27),\"\",'Team Info'!G27)","v":""},{"$f":"IF('Team Info'!N27=\"Withdrawn\",\"** WITHDRAWN **\", \"\")","v":""},{"$f":"IF(ISBLANK('Team Info'!I27),\"\",'Team Info'!I27)","v":""}]
[null,{"$f":"IF(ISBLANK('Team Info'!A28),\"\",'Team Info'!A28)","v":12},{"$f":"IF(ISBLANK('Team Info'!C28),\"\",\"Student\")","v":""},{"$f":"IF(ISBLANK('Team Info'!C28),\"\",'Team Info'!C28&\" \"&'Team Info'!D28)","v":""},{"$f":"IF(ISBLANK('Team Info'!E28),\"\",'Team Info'!E28)","v":""},{"$f":"IF(ISBLANK('Team Info'!F28),\"\",'Team Info'!F28)","v":""},{"$f":"IF(ISBLANK('Team Info'!G28),\"\",'Team Info'!G28)","v":""},{"$f":"IF('Team Info'!N28=\"Withdrawn\",\"** WITHDRAWN **\", \"\")","v":""},{"$f":"IF(ISBLANK('Team Info'!I28),\"\",'Team Info'!I28)","v":""}]
[null,{"$f":"IF(ISBLANK('Team Info'!A29),\"\",'Team Info'!A29)","v":13},{"$f":"IF(ISBLANK('Team Info'!C29),\"\",\"Student\")","v":""},{"$f":"IF(ISBLANK('Team Info'!C29),\"\",'Team Info'!C29&\" \"&'Team Info'!D29)","v":""},{"$f":"IF(ISBLANK('Team Info'!E29),\"\",'Team Info'!E29)","v":""},{"$f":"IF(ISBLANK('Team Info'!F29),\"\",'Team Info'!F29)","v":""},{"$f":"IF(ISBLANK('Team Info'!G29),\"\",'Team Info'!G29)","v":""},{"$f":"IF('Team Info'!N29=\"Withdrawn\",\"** WITHDRAWN **\", \"\")","v":""},{"$f":"IF(ISBLANK('Team Info'!I29),\"\",'Team Info'!I29)","v":""}]
[null,{"$f":"IF(ISBLANK('Team Info'!A30),\"\",'Team Info'!A30)","v":14},{"$f":"IF(ISBLANK('Team Info'!C30),\"\",\"Student\")","v":""},{"$f":"IF(ISBLANK('Team Info'!C30),\"\",'Team Info'!C30&\" \"&'Team Info'!D30)","v":""},{"$f":"IF(ISBLANK('Team Info'!E30),\"\",'Team Info'!E30)","v":""},{"$f":"IF(ISBLANK('Team Info'!F30),\"\",'Team Info'!F30)","v":""},{"$f":"IF(ISBLANK('Team Info'!G30),\"\",'Team Info'!G30)","v":""},{"$f":"IF('Team Info'!N30=\"Withdrawn\",\"** WITHDRAWN **\", \"\")","v":""},{"$f":"IF(ISBLANK('Team Info'!I30),\"\",'Team Info'!I30)","v":""}]
[null,{"$f":"IF(ISBLANK('Team Info'!A31),\"\",'Team Info'!A31)","v":15},{"$f":"IF(ISBLANK('Team Info'!C31),\"\",\"Student\")","v":""},{"$f":"IF(ISBLANK('Team Info'!C31),\"\",'Team Info'!C31&\" \"&'Team Info'!D31)","v":""},{"$f":"IF(ISBLANK('Team Info'!E31),\"\",'Team Info'!E31)","v":""},{"$f":"IF(ISBLANK('Team Info'!F31),\"\",'Team Info'!F31)","v":""},{"$f":"IF(ISBLANK('Team Info'!G31),\"\",'Team Info'!G31)","v":""},{"$f":"IF('Team Info'!N31=\"Withdrawn\",\"** WITHDRAWN **\", \"\")","v":""},{"$f":"IF(ISBLANK('Team Info'!I31),\"\",'Team Info'!I31)","v":""}]
[null,{"$f":"IF(ISBLANK('Team Info'!A32),\"\",'Team Info'!A32)","v":16},{"$f":"IF(ISBLANK('Team Info'!C32),\"\",\"Student\")","v":""},{"$f":"IF(ISBLANK('Team Info'!C32),\"\",'Team Info'!C32&\" \"&'Team Info'!D32)","v":""},{"$f":"IF(ISBLANK('Team Info'!E32),\"\",'Team Info'!E32)","v":""},{"$f":"IF(ISBLANK('Team Info'!F32),\"\",'Team Info'!F32)","v":""},{"$f":"IF(ISBLANK('Team Info'!G32),\"\",'Team Info'!G32)","v":""},{"$f":"IF('Team Info'!N32=\"Withdrawn\",\"** WITHDRAWN **\", \"\")","v":""},{"$f":"IF(ISBLANK('Team Info'!I32),\"\",'Team Info'!I32)","v":""}]
[null,{"$f":"IF(ISBLANK('Team Info'!A33),\"\",'Team Info'!A33)","v":17},{"$f":"IF(ISBLANK('Team Info'!C33),\"\",\"Student\")","v":""},{"$f":"IF(ISBLANK('Team Info'!C33),\"\",'Team Info'!C33&\" \"&'Team Info'!D33)","v":""},{"$f":"IF(ISBLANK('Team Info'!E33),\"\",'Team Info'!E33)","v":""},{"$f":"IF(ISBLANK('Team Info'!F33),\"\",'Team Info'!F33)","v":""},{"$f":"IF(ISBLANK('Team Info'!G33),\"\",'Team Info'!G33)","v":""},{"$f":"IF('Team Info'!N33=\"Withdrawn\",\"** WITHDRAWN **\", \"\")","v":""},{"$f":"IF(ISBLANK('Team Info'!I33),\"\",'Team Info'!I33)","v":""}]
[null,{"$f":"IF(ISBLANK('Team Info'!A34),\"\",'Team Info'!A34)","v":18},{"$f":"IF(ISBLANK('Team Info'!C34),\"\",\"Student\")","v":""},{"$f":"IF(ISBLANK('Team Info'!C34),\"\",'Team Info'!C34&\" \"&'Team Info'!D34)","v":""},{"$f":"IF(ISBLANK('Team Info'!E34),\"\",'Team Info'!E34)","v":""},{"$f":"IF(ISBLANK('Team Info'!F34),\"\",'Team Info'!F34)","v":""},{"$f":"IF(ISBLANK('Team Info'!G34),\"\",'Team Info'!G34)","v":""},{"$f":"IF('Team Info'!N34=\"Withdrawn\",\"** WITHDRAWN **\", \"\")","v":""},{"$f":"IF(ISBLANK('Team Info'!I34),\"\",'Team Info'!I34)","v":""}]
[null,{"$f":"IF(ISBLANK('Team Info'!A35),\"\",'Team Info'!A35)","v":19},{"$f":"IF(ISBLANK('Team Info'!C35),\"\",\"Student\")","v":""},{"$f":"IF(ISBLANK('Team Info'!C35),\"\",'Team Info'!C35&\" \"&'Team Info'!D35)","v":""},{"$f":"IF(ISBLANK('Team Info'!E35),\"\",'Team Info'!E35)","v":""},{"$f":"IF(ISBLANK('Team Info'!F35),\"\",'Team Info'!F35)","v":""},{"$f":"IF(ISBLANK('Team Info'!G35),\"\",'Team Info'!G35)","v":""},{"$f":"IF('Team Info'!N35=\"Withdrawn\",\"** WITHDRAWN **\", \"\")","v":""},{"$f":"IF(ISBLANK('Team Info'!I35),\"\",'Team Info'!I35)","v":""}]
[null,{"$f":"IF(ISBLANK('Team Info'!A36),\"\",'Team Info'!A36)","v":20},{"$f":"IF(ISBLANK('Team Info'!C36),\"\",\"Student\")","v":""},{"$f":"IF(ISBLANK('Team Info'!C36),\"\",'Team Info'!C36&\" \"&'Team Info'!D36)","v":""},{"$f":"IF(ISBLANK('Team Info'!E36),\"\",'Team Info'!E36)","v":""},{"$f":"IF(ISBLANK('Team Info'!F36),\"\",'Team Info'!F36)","v":""},{"$f":"IF(ISBLANK('Team Info'!G36),\"\",'Team Info'!G36)","v":""},{"$f":"IF('Team Info'!N36=\"Withdrawn\",\"** WITHDRAWN **\", \"\")","v":""},{"$f":"IF(ISBLANK('Team Info'!I36),\"\",'Team Info'!I36)","v":""}]
[null,{"$f":"IF(ISBLANK('Team Info'!A37),\"\",'Team Info'!A37)","v":21},{"$f":"IF(ISBLANK('Team Info'!C37),\"\",\"Student\")","v":""},{"$f":"IF(ISBLANK('Team Info'!C37),\"\",'Team Info'!C37&\" \"&'Team Info'!D37)","v":""},{"$f":"IF(ISBLANK('Team Info'!E37),\"\",'Team Info'!E37)","v":""},{"$f":"IF(ISBLANK('Team Info'!F37),\"\",'Team Info'!F37)","v":""},{"$f":"IF(ISBLANK('Team Info'!G37),\"\",'Team Info'!G37)","v":""},{"$f":"IF('Team Info'!N37=\"Withdrawn\",\"** WITHDRAWN **\", \"\")","v":""},{"$f":"IF(ISBLANK('Team Info'!I37),\"\",'Team Info'!I37)","v":""}]
[null,{"$f":"IF(ISBLANK('Team Info'!A38),\"\",'Team Info'!A38)","v":22},{"$f":"IF(ISBLANK('Team Info'!C38),\"\",\"Student\")","v":""},{"$f":"IF(ISBLANK('Team Info'!C38),\"\",'Team Info'!C38&\" \"&'Team Info'!D38)","v":""},{"$f":"IF(ISBLANK('Team Info'!E38),\"\",'Team Info'!E38)","v":""},{"$f":"IF(ISBLANK('Team Info'!F38),\"\",'Team Info'!F38)","v":""},{"$f":"IF(ISBLANK('Team Info'!G38),\"\",'Team Info'!G38)","v":""},{"$f":"IF('Team Info'!N38=\"Withdrawn\",\"** WITHDRAWN **\", \"\")","v":""},{"$f":"IF(ISBLANK('Team Info'!I38),\"\",'Team Info'!I38)","v":""}]
[null,{"$f":"IF(ISBLANK('Team Info'!A39),\"\",'Team Info'!A39)","v":23},{"$f":"IF(ISBLANK('Team Info'!C39),\"\",\"Student\")","v":""},{"$f":"IF(ISBLANK('Team Info'!C39),\"\",'Team Info'!C39&\" \"&'Team Info'!D39)","v":""},{"$f":"IF(ISBLANK('Team Info'!E39),\"\",'Team Info'!E39)","v":""},{"$f":"IF(ISBLANK('Team Info'!F39),\"\",'Team Info'!F39)","v":""},{"$f":"IF(ISBLANK('Team Info'!G39),\"\",'Team Info'!G39)","v":""},{"$f":"IF('Team Info'!N39=\"Withdrawn\",\"** WITHDRAWN **\", \"\")","v":""},{"$f":"IF(ISBLANK('Team Info'!I39),\"\",'Team Info'!I39)","v":""}]
[null,{"$f":"IF(ISBLANK('Team Info'!A40),\"\",'Team Info'!A40)","v":24},{"$f":"IF(ISBLANK('Team Info'!C40),\"\",\"Student\")","v":""},{"$f":"IF(ISBLANK('Team Info'!C40),\"\",'Team Info'!C40&\" \"&'Team Info'!D40)","v":""},{"$f":"IF(ISBLANK('Team Info'!E40),\"\",'Team Info'!E40)","v":""},{"$f":"IF(ISBLANK('Team Info'!F40),\"\",'Team Info'!F40)","v":""},{"$f":"IF(ISBLANK('Team Info'!G40),\"\",'Team Info'!G40)","v":""},{"$f":"IF('Team Info'!N40=\"Withdrawn\",\"** WITHDRAWN **\", \"\")","v":""},{"$f":"IF(ISBLANK('Team Info'!I40),\"\",'Team Info'!I40)","v":""}]
[null,{"$f":"IF(ISBLANK('Team Info'!A41),\"\",'Team Info'!A41)","v":25},{"$f":"IF(ISBLANK('Team Info'!C41),\"\",\"Student\")","v":""},{"$f":"IF(ISBLANK('Team Info'!C41),\"\",'Team Info'!C41&\" \"&'Team Info'!D41)","v":""},{"$f":"IF(ISBLANK('Team Info'!E41),\"\",'Team Info'!E41)","v":""},{"$f":"IF(ISBLANK('Team Info'!F41),\"\",'Team Info'!F41)","v":""},{"$f":"IF(ISBLANK('Team Info'!G41),\"\",'Team Info'!G41)","v":""},{"$f":"IF('Team Info'!N41=\"Withdrawn\",\"** WITHDRAWN **\", \"\")","v":""},{"$f":"IF(ISBLANK('Team Info'!I41),\"\",'Team Info'!I41)","v":""}]
[null,{"$f":"IF(ISBLANK('Team Info'!A42),\"\",'Team Info'!A42)","v":26},{"$f":"IF(ISBLANK('Team Info'!C42),\"\",\"Student\")","v":""},{"$f":"IF(ISBLANK('Team Info'!C42),\"\",'Team Info'!C42&\" \"&'Team Info'!D42)","v":""},{"$f":"IF(ISBLANK('Team Info'!E42),\"\",'Team Info'!E42)","v":""},{"$f":"IF(ISBLANK('Team Info'!F42),\"\",'Team Info'!F42)","v":""},{"$f":"IF(ISBLANK('Team Info'!G42),\"\",'Team Info'!G42)","v":""},{"$f":"IF('Team Info'!N42=\"Withdrawn\",\"** WITHDRAWN **\", \"\")","v":""},{"$f":"IF(ISBLANK('Team Info'!I42),\"\",'Team Info'!I42)","v":""}]
[null,{"$f":"IF(ISBLANK('Team Info'!A43),\"\",'Team Info'!A43)","v":27},{"$f":"IF(ISBLANK('Team Info'!C43),\"\",\"Student\")","v":""},{"$f":"IF(ISBLANK('Team Info'!C43),\"\",'Team Info'!C43&\" \"&'Team Info'!D43)","v":""},{"$f":"IF(ISBLANK('Team Info'!E43),\"\",'Team Info'!E43)","v":""},{"$f":"IF(ISBLANK('Team Info'!F43),\"\",'Team Info'!F43)","v":""},{"$f":"IF(ISBLANK('Team Info'!G43),\"\",'Team Info'!G43)","v":""},{"$f":"IF('Team Info'!N43=\"Withdrawn\",\"** WITHDRAWN **\", \"\")","v":""},{"$f":"IF(ISBLANK('Team Info'!I43),\"\",'Team Info'!I43)","v":""}]
[null,{"$f":"IF(ISBLANK('Team Info'!A44),\"\",'Team Info'!A44)","v":28},{"$f":"IF(ISBLANK('Team Info'!C44),\"\",\"Student\")","v":""},{"$f":"IF(ISBLANK('Team Info'!C44),\"\",'Team Info'!C44&\" \"&'Team Info'!D44)","v":""},{"$f":"IF(ISBLANK('Team Info'!E44),\"\",'Team Info'!E44)","v":""},{"$f":"IF(ISBLANK('Team Info'!F44),\"\",'Team Info'!F44)","v":""},{"$f":"IF(ISBLANK('Team Info'!G44),\"\",'Team Info'!G44)","v":""},{"$f":"IF('Team Info'!N44=\"Withdrawn\",\"** WITHDRAWN **\", \"\")","v":""},{"$f":"IF(ISBLANK('Team Info'!I44),\"\",'Team Info'!I44)","v":""}]
[null,{"$f":"IF(ISBLANK('Team Info'!A45),\"\",'Team Info'!A45)","v":29},{"$f":"IF(ISBLANK('Team Info'!C45),\"\",\"Student\")","v":""},{"$f":"IF(ISBLANK('Team Info'!C45),\"\",'Team Info'!C45&\" \"&'Team Info'!D45)","v":""},{"$f":"IF(ISBLANK('Team Info'!E45),\"\",'Team Info'!E45)","v":""},{"$f":"IF(ISBLANK('Team Info'!F45),\"\",'Team Info'!F45)","v":""},{"$f":"IF(ISBLANK('Team Info'!G45),\"\",'Team Info'!G45)","v":""},{"$f":"IF('Team Info'!N45=\"Withdrawn\",\"** WITHDRAWN **\", \"\")","v":""},{"$f":"IF(ISBLANK('Team Info'!I45),\"\",'Team Info'!I45)","v":""}]
[null,{"$f":"IF(ISBLANK('Team Info'!A46),\"\",'Team Info'!A46)","v":30},{"$f":"IF(ISBLANK('Team Info'!C46),\"\",\"Student\")","v":""},{"$f":"IF(ISBLANK('Team Info'!C46),\"\",'Team Info'!C46&\" \"&'Team Info'!D46)","v":""},{"$f":"IF(ISBLANK('Team Info'!E46),\"\",'Team Info'!E46)","v":""},{"$f":"IF(ISBLANK('Team Info'!F46),\"\",'Team Info'!F46)","v":""},{"$f":"IF(ISBLANK('Team Info'!G46),\"\",'Team Info'!G46)","v":""},{"$f":"IF('Team Info'!N46=\"Withdrawn\",\"** WITHDRAWN **\", \"\")","v":""},{"$f":"IF(ISBLANK('Team Info'!I46),\"\",'Team Info'!I46)","v":""}]
[null,"Summary completed by:"]
[]
[null,"Signature:"]
[]
[]
[null,"Date: ",null,"2023-05-11T16:00:54.460"]

{"sheet":"Team Uniform Order","index":2,"n_rows":40,"n_cols":9,"rows_kept":40,"cut":false,"hidden":false,"merged":[[3,1,3,4],[5,1,5,4],[3,7,3,8]]}
[]
[{"$f":"\"Team Uniform Order: \"&B4","v":"Team Uniform Order: 0"}]
[]
["Team:",{"$f":"'Team Info'!C4","v":0},null,null,null,null,"As at:","2023-05-11T14:52:21.180"]
[]
["Region:",{"$f":"'Team Info'!C6","v":"Sunshine Coast"}]
[]
[]
["Team members made-to-order request"]
["Gender (M/F)","First Name","Last Name","School","Playing No",{"$f":"'Team Info'!J16","v":{"$error":"#N/A"}},"QTY",{"$f":"'Team Info'!L16","v":{"$error":"#N/A"}},"QTY"]
[{"$f":"IF(ISBLANK('Team Info'!F17),\"\",'Team Info'!F17)","v":""},{"$f":"IF(ISBLANK('Team Info'!C17),\"\",'Team Info'!C17)","v":""},{"$f":"IF(ISBLANK('Team Info'!D17),\"\",'Team Info'!D17)","v":""},{"$f":"IF(ISBLANK('Team Info'!E17),\"\",'Team Info'!E17)","v":""},{"$f":"IF('Team Info'!N17=\"Withdrawn\",\"WITHDRAWN\",'Team Info'!A17)","v":1},{"$f":"IF(ISBLANK('Team Info'!J17),\"\",IF('Team Info'!N17=\"Withdrawn\",\"** WD **\",'Team Info'!J17))","v":""},{"$f":"IF(ISBLANK('Team Info'!K17),\"\",'Team Info'!K17)","v":""},{"$f":"IF(ISBLANK('Team Info'!L17),\"\",IF('Team Info'!N17=\"Withdrawn\",\"** WD **\",'Team Info'!L17))","v":""},{"$f":"IF(ISBLANK('Team Info'!M17),\"\",'Team Info'!M17)","v":""}]
[{"$f":"IF(ISBLANK('Team Info'!F18),\"\",'Team Info'!F18)","v":""},{"$f":"IF(ISBLANK('Team Info'!C18),\"\",'Team Info'!C18)","v":""},{"$f":"IF(ISBLANK('Team Info'!D18),\"\",'Team Info'!D18)","v":""},{"$f":"IF(ISBLANK('Team Info'!E18),\"\",'Team Info'!E18)","v":""},{"$f":"IF('Team Info'!N18=\"Withdrawn\",\"WITHDRAWN\",'Team Info'!A18)","v":2},{"$f":"IF(ISBLANK('Team Info'!J18),\"\",IF('Team Info'!N18=\"Withdrawn\",\"** WD **\",'Team Info'!J18))","v":""},{"$f":"IF(ISBLANK('Team Info'!K18),\"\",'Team Info'!K18)","v":""},{"$f":"IF(ISBLANK('Team Info'!L18),\"\",IF('Team Info'!N18=\"Withdrawn\",\"** WD **\",'Team Info'!L18))","v":""},{"$f":"IF(ISBLANK('Team Info'!M18),\"\",'Team Info'!M18)","v":""}]
[{"$f":"IF(ISBLANK('Team Info'!F19),\"\",'Team Info'!F19)","v":""},{"$f":"IF(ISBLANK('Team Info'!C19),\"\",'Team Info'!C19)","v":""},{"$f":"IF(ISBLANK('Team Info'!D19),\"\",'Team Info'!D19)","v":""},{"$f":"IF(ISBLANK('Team Info'!E19),\"\",'Team Info'!E19)","v":""},{"$f":"IF('Team Info'!N19=\"Withdrawn\",\"WITHDRAWN\",'Team Info'!A19)","v":3},{"$f":"IF(ISBLANK('Team Info'!J19),\"\",IF('Team Info'!N19=\"Withdrawn\",\"** WD **\",'Team Info'!J19))","v":""},{"$f":"IF(ISBLANK('Team Info'!K19),\"\",'Team Info'!K19)","v":""},{"$f":"IF(ISBLANK('Team Info'!L19),\"\",IF('Team Info'!N19=\"Withdrawn\",\"** WD **\",'Team Info'!L19))","v":""},{"$f":"IF(ISBLANK('Team Info'!M19),\"\",'Team Info'!M19)","v":""}]
[{"$f":"IF(ISBLANK('Team Info'!F20),\"\",'Team Info'!F20)","v":""},{"$f":"IF(ISBLANK('Team Info'!C20),\"\",'Team Info'!C20)","v":""},{"$f":"IF(ISBLANK('Team Info'!D20),\"\",'Team Info'!D20)","v":""},{"$f":"IF(ISBLANK('Team Info'!E20),\"\",'Team Info'!E20)","v":""},{"$f":"IF('Team Info'!N20=\"Withdrawn\",\"WITHDRAWN\",'Team Info'!A20)","v":4},{"$f":"IF(ISBLANK('Team Info'!J20),\"\",IF('Team Info'!N20=\"Withdrawn\",\"** WD **\",'Team Info'!J20))","v":""},{"$f":"IF(ISBLANK('Team Info'!K20),\"\",'Team Info'!K20)","v":""},{"$f":"IF(ISBLANK('Team Info'!L20),\"\",IF('Team Info'!N20=\"Withdrawn\",\"** WD **\",'Team Info'!L20))","v":""},{"$f":"IF(ISBLANK('Team Info'!M20),\"\",'Team Info'!M20)","v":""}]
[{"$f":"IF(ISBLANK('Team Info'!F21),\"\",'Team Info'!F21)","v":""},{"$f":"IF(ISBLANK('Team Info'!C21),\"\",'Team Info'!C21)","v":""},{"$f":"IF(ISBLANK('Team Info'!D21),\"\",'Team Info'!D21)","v":""},{"$f":"IF(ISBLANK('Team Info'!E21),\"\",'Team Info'!E21)","v":""},{"$f":"IF('Team Info'!N21=\"Withdrawn\",\"WITHDRAWN\",'Team Info'!A21)","v":5},{"$f":"IF(ISBLANK('Team Info'!J21),\"\",IF('Team Info'!N21=\"Withdrawn\",\"** WD **\",'Team Info'!J21))","v":""},{"$f":"IF(ISBLANK('Team Info'!K21),\"\",'Team Info'!K21)","v":""},{"$f":"IF(ISBLANK('Team Info'!L21),\"\",IF('Team Info'!N21=\"Withdrawn\",\"** WD **\",'Team Info'!L21))","v":""},{"$f":"IF(ISBLANK('Team Info'!M21),\"\",'Team Info'!M21)","v":""}]
[{"$f":"IF(ISBLANK('Team Info'!F22),\"\",'Team Info'!F22)","v":""},{"$f":"IF(ISBLANK('Team Info'!C22),\"\",'Team Info'!C22)","v":""},{"$f":"IF(ISBLANK('Team Info'!D22),\"\",'Team Info'!D22)","v":""},{"$f":"IF(ISBLANK('Team Info'!E22),\"\",'Team Info'!E22)","v":""},{"$f":"IF('Team Info'!N22=\"Withdrawn\",\"WITHDRAWN\",'Team Info'!A22)","v":6},{"$f":"IF(ISBLANK('Team Info'!J22),\"\",IF('Team Info'!N22=\"Withdrawn\",\"** WD **\",'Team Info'!J22))","v":""},{"$f":"IF(ISBLANK('Team Info'!K22),\"\",'Team Info'!K22)","v":""},{"$f":"IF(ISBLANK('Team Info'!L22),\"\",IF('Team Info'!N22=\"Withdrawn\",\"** WD **\",'Team Info'!L22))","v":""},{"$f":"IF(ISBLANK('Team Info'!M22),\"\",'Team Info'!M22)","v":""}]
[{"$f":"IF(ISBLANK('Team Info'!F23),\"\",'Team Info'!F23)","v":""},{"$f":"IF(ISBLANK('Team Info'!C23),\"\",'Team Info'!C23)","v":""},{"$f":"IF(ISBLANK('Team Info'!D23),\"\",'Team Info'!D23)","v":""},{"$f":"IF(ISBLANK('Team Info'!E23),\"\",'Team Info'!E23)","v":""},{"$f":"IF('Team Info'!N23=\"Withdrawn\",\"WITHDRAWN\",'Team Info'!A23)","v":7},{"$f":"IF(ISBLANK('Team Info'!J23),\"\",IF('Team Info'!N23=\"Withdrawn\",\"** WD **\",'Team Info'!J23))","v":""},{"$f":"IF(ISBLANK('Team Info'!K23),\"\",'Team Info'!K23)","v":""},{"$f":"IF(ISBLANK('Team Info'!L23),\"\",IF('Team Info'!N23=\"Withdrawn\",\"** WD **\",'Team Info'!L23))","v":""},{"$f":"IF(ISBLANK('Team Info'!M23),\"\",'Team Info'!M23)","v":""}]
[{"$f":"IF(ISBLANK('Team Info'!F24),\"\",'Team Info'!F24)","v":""},{"$f":"IF(ISBLANK('Team Info'!C24),\"\",'Team Info'!C24)","v":""},{"$f":"IF(ISBLANK('Team Info'!D24),\"\",'Team Info'!D24)","v":""},{"$f":"IF(ISBLANK('Team Info'!E24),\"\",'Team Info'!E24)","v":""},{"$f":"IF('Team Info'!N24=\"Withdrawn\",\"WITHDRAWN\",'Team Info'!A24)","v":8},{"$f":"IF(ISBLANK('Team Info'!J24),\"\",IF('Team Info'!N24=\"Withdrawn\",\"** WD **\",'Team Info'!J24))","v":""},{"$f":"IF(ISBLANK('Team Info'!K24),\"\",'Team Info'!K24)","v":""},{"$f":"IF(ISBLANK('Team Info'!L24),\"\",IF('Team Info'!N24=\"Withdrawn\",\"** WD **\",'Team Info'!L24))","v":""},{"$f":"IF(ISBLANK('Team Info'!M24),\"\",'Team Info'!M24)","v":""}]
[{"$f":"IF(ISBLANK('Team Info'!F25),\"\",'Team Info'!F25)","v":""},{"$f":"IF(ISBLANK('Team Info'!C25),\"\",'Team Info'!C25)","v":""},{"$f":"IF(ISBLANK('Team Info'!D25),\"\",'Team Info'!D25)","v":""},{"$f":"IF(ISBLANK('Team Info'!E25),\"\",'Team Info'!E25)","v":""},{"$f":"IF('Team Info'!N25=\"Withdrawn\",\"WITHDRAWN\",'Team Info'!A25)","v":9},{"$f":"IF(ISBLANK('Team Info'!J25),\"\",IF('Team Info'!N25=\"Withdrawn\",\"** WD **\",'Team Info'!J25))","v":""},{"$f":"IF(ISBLANK('Team Info'!K25),\"\",'Team Info'!K25)","v":""},{"$f":"IF(ISBLANK('Team Info'!L25),\"\",IF('Team Info'!N25=\"Withdrawn\",\"** WD **\",'Team Info'!L25))","v":""},{"$f":"IF(ISBLANK('Team Info'!M25),\"\",'Team Info'!M25)","v":""}]
[{"$f":"IF(ISBLANK('Team Info'!F26),\"\",'Team Info'!F26)","v":""},{"$f":"IF(ISBLANK('Team Info'!C26),\"\",'Team Info'!C26)","v":""},{"$f":"IF(ISBLANK('Team Info'!D26),\"\",'Team Info'!D26)","v":""},{"$f":"IF(ISBLANK('Team Info'!E26),\"\",'Team Info'!E26)","v":""},{"$f":"IF('Team Info'!N26=\"Withdrawn\",\"WITHDRAWN\",'Team Info'!A26)","v":10},{"$f":"IF(ISBLANK('Team Info'!J26),\"\",IF('Team Info'!N26=\"Withdrawn\",\"** WD **\",'Team Info'!J26))","v":""},{"$f":"IF(ISBLANK('Team Info'!K26),\"\",'Team Info'!K26)","v":""},{"$f":"IF(ISBLANK('Team Info'!L26),\"\",IF('Team Info'!N26=\"Withdrawn\",\"** WD **\",'Team Info'!L26))","v":""},{"$f":"IF(ISBLANK('Team Info'!M26),\"\",'Team Info'!M26)","v":""}]
[{"$f":"IF(ISBLANK('Team Info'!F27),\"\",'Team Info'!F27)","v":""},{"$f":"IF(ISBLANK('Team Info'!C27),\"\",'Team Info'!C27)","v":""},{"$f":"IF(ISBLANK('Team Info'!D27),\"\",'Team Info'!D27)","v":""},{"$f":"IF(ISBLANK('Team Info'!E27),\"\",'Team Info'!E27)","v":""},{"$f":"IF('Team Info'!N27=\"Withdrawn\",\"WITHDRAWN\",'Team Info'!A27)","v":11},{"$f":"IF(ISBLANK('Team Info'!J27),\"\",IF('Team Info'!N27=\"Withdrawn\",\"** WD **\",'Team Info'!J27))","v":""},{"$f":"IF(ISBLANK('Team Info'!K27),\"\",'Team Info'!K27)","v":""},{"$f":"IF(ISBLANK('Team Info'!L27),\"\",IF('Team Info'!N27=\"Withdrawn\",\"** WD **\",'Team Info'!L27))","v":""},{"$f":"IF(ISBLANK('Team Info'!M27),\"\",'Team Info'!M27)","v":""}]
[{"$f":"IF(ISBLANK('Team Info'!F28),\"\",'Team Info'!F28)","v":""},{"$f":"IF(ISBLANK('Team Info'!C28),\"\",'Team Info'!C28)","v":""},{"$f":"IF(ISBLANK('Team Info'!D28),\"\",'Team Info'!D28)","v":""},{"$f":"IF(ISBLANK('Team Info'!E28),\"\",'Team Info'!E28)","v":""},{"$f":"IF('Team Info'!N28=\"Withdrawn\",\"WITHDRAWN\",'Team Info'!A28)","v":12},{"$f":"IF(ISBLANK('Team Info'!J28),\"\",IF('Team Info'!N28=\"Withdrawn\",\"** WD **\",'Team Info'!J28))","v":""},{"$f":"IF(ISBLANK('Team Info'!K28),\"\",'Team Info'!K28)","v":""},{"$f":"IF(ISBLANK('Team Info'!L28),\"\",IF('Team Info'!N28=\"Withdrawn\",\"** WD **\",'Team Info'!L28))","v":""},{"$f":"IF(ISBLANK('Team Info'!M28),\"\",'Team Info'!M28)","v":""}]
[{"$f":"IF(ISBLANK('Team Info'!F29),\"\",'Team Info'!F29)","v":""},{"$f":"IF(ISBLANK('Team Info'!C29),\"\",'Team Info'!C29)","v":""},{"$f":"IF(ISBLANK('Team Info'!D29),\"\",'Team Info'!D29)","v":""},{"$f":"IF(ISBLANK('Team Info'!E29),\"\",'Team Info'!E29)","v":""},{"$f":"IF('Team Info'!N29=\"Withdrawn\",\"WITHDRAWN\",'Team Info'!A29)","v":13},{"$f":"IF(ISBLANK('Team Info'!J29),\"\",IF('Team Info'!N29=\"Withdrawn\",\"** WD **\",'Team Info'!J29))","v":""},{"$f":"IF(ISBLANK('Team Info'!K29),\"\",'Team Info'!K29)","v":""},{"$f":"IF(ISBLANK('Team Info'!L29),\"\",IF('Team Info'!N29=\"Withdrawn\",\"** WD **\",'Team Info'!L29))","v":""},{"$f":"IF(ISBLANK('Team Info'!M29),\"\",'Team Info'!M29)","v":""}]
[{"$f":"IF(ISBLANK('Team Info'!F30),\"\",'Team Info'!F30)","v":""},{"$f":"IF(ISBLANK('Team Info'!C30),\"\",'Team Info'!C30)","v":""},{"$f":"IF(ISBLANK('Team Info'!D30),\"\",'Team Info'!D30)","v":""},{"$f":"IF(ISBLANK('Team Info'!E30),\"\",'Team Info'!E30)","v":""},{"$f":"IF('Team Info'!N30=\"Withdrawn\",\"WITHDRAWN\",'Team Info'!A30)","v":14},{"$f":"IF(ISBLANK('Team Info'!J30),\"\",IF('Team Info'!N30=\"Withdrawn\",\"** WD **\",'Team Info'!J30))","v":""},{"$f":"IF(ISBLANK('Team Info'!K30),\"\",'Team Info'!K30)","v":""},{"$f":"IF(ISBLANK('Team Info'!L30),\"\",IF('Team Info'!N30=\"Withdrawn\",\"** WD **\",'Team Info'!L30))","v":""},{"$f":"IF(ISBLANK('Team Info'!M30),\"\",'Team Info'!M30)","v":""}]
[{"$f":"IF(ISBLANK('Team Info'!F31),\"\",'Team Info'!F31)","v":""},{"$f":"IF(ISBLANK('Team Info'!C31),\"\",'Team Info'!C31)","v":""},{"$f":"IF(ISBLANK('Team Info'!D31),\"\",'Team Info'!D31)","v":""},{"$f":"IF(ISBLANK('Team Info'!E31),\"\",'Team Info'!E31)","v":""},{"$f":"IF('Team Info'!N31=\"Withdrawn\",\"WITHDRAWN\",'Team Info'!A31)","v":15},{"$f":"IF(ISBLANK('Team Info'!J31),\"\",IF('Team Info'!N31=\"Withdrawn\",\"** WD **\",'Team Info'!J31))","v":""},{"$f":"IF(ISBLANK('Team Info'!K31),\"\",'Team Info'!K31)","v":""},{"$f":"IF(ISBLANK('Team Info'!L31),\"\",IF('Team Info'!N31=\"Withdrawn\",\"** WD **\",'Team Info'!L31))","v":""},{"$f":"IF(ISBLANK('Team Info'!M31),\"\",'Team Info'!M31)","v":""}]
[{"$f":"IF(ISBLANK('Team Info'!F32),\"\",'Team Info'!F32)","v":""},{"$f":"IF(ISBLANK('Team Info'!C32),\"\",'Team Info'!C32)","v":""},{"$f":"IF(ISBLANK('Team Info'!D32),\"\",'Team Info'!D32)","v":""},{"$f":"IF(ISBLANK('Team Info'!E32),\"\",'Team Info'!E32)","v":""},{"$f":"IF('Team Info'!N32=\"Withdrawn\",\"WITHDRAWN\",'Team Info'!A32)","v":16},{"$f":"IF(ISBLANK('Team Info'!J32),\"\",IF('Team Info'!N32=\"Withdrawn\",\"** WD **\",'Team Info'!J32))","v":""},{"$f":"IF(ISBLANK('Team Info'!K32),\"\",'Team Info'!K32)","v":""},{"$f":"IF(ISBLANK('Team Info'!L32),\"\",IF('Team Info'!N32=\"Withdrawn\",\"** WD **\",'Team Info'!L32))","v":""},{"$f":"IF(ISBLANK('Team Info'!M32),\"\",'Team Info'!M32)","v":""}]
[{"$f":"IF(ISBLANK('Team Info'!F33),\"\",'Team Info'!F33)","v":""},{"$f":"IF(ISBLANK('Team Info'!C33),\"\",'Team Info'!C33)","v":""},{"$f":"IF(ISBLANK('Team Info'!D33),\"\",'Team Info'!D33)","v":""},{"$f":"IF(ISBLANK('Team Info'!E33),\"\",'Team Info'!E33)","v":""},{"$f":"IF('Team Info'!N33=\"Withdrawn\",\"WITHDRAWN\",'Team Info'!A33)","v":17},{"$f":"IF(ISBLANK('Team Info'!J33),\"\",IF('Team Info'!N33=\"Withdrawn\",\"** WD **\",'Team Info'!J33))","v":""},{"$f":"IF(ISBLANK('Team Info'!K33),\"\",'Team Info'!K33)","v":""},{"$f":"IF(ISBLANK('Team Info'!L33),\"\",IF('Team Info'!N33=\"Withdrawn\",\"** WD **\",'Team Info'!L33))","v":""},{"$f":"IF(ISBLANK('Team Info'!M33),\"\",'Team Info'!M33)","v":""}]
[{"$f":"IF(ISBLANK('Team Info'!F34),\"\",'Team Info'!F34)","v":""},{"$f":"IF(ISBLANK('Team Info'!C34),\"\",'Team Info'!C34)","v":""},{"$f":"IF(ISBLANK('Team Info'!D34),\"\",'Team Info'!D34)","v":""},{"$f":"IF(ISBLANK('Team Info'!E34),\"\",'Team Info'!E34)","v":""},{"$f":"IF('Team Info'!N34=\"Withdrawn\",\"WITHDRAWN\",'Team Info'!A34)","v":18},{"$f":"IF(ISBLANK('Team Info'!J34),\"\",IF('Team Info'!N34=\"Withdrawn\",\"** WD **\",'Team Info'!J34))","v":""},{"$f":"IF(ISBLANK('Team Info'!K34),\"\",'Team Info'!K34)","v":""},{"$f":"IF(ISBLANK('Team Info'!L34),\"\",IF('Team Info'!N34=\"Withdrawn\",\"** WD **\",'Team Info'!L34))","v":""},{"$f":"IF(ISBLANK('Team Info'!M34),\"\",'Team Info'!M34)","v":""}]
[{"$f":"IF(ISBLANK('Team Info'!F35),\"\",'Team Info'!F35)","v":""},{"$f":"IF(ISBLANK('Team Info'!C35),\"\",'Team Info'!C35)","v":""},{"$f":"IF(ISBLANK('Team Info'!D35),\"\",'Team Info'!D35)","v":""},{"$f":"IF(ISBLANK('Team Info'!E35),\"\",'Team Info'!E35)","v":""},{"$f":"IF('Team Info'!N35=\"Withdrawn\",\"WITHDRAWN\",'Team Info'!A35)","v":19},{"$f":"IF(ISBLANK('Team Info'!J35),\"\",IF('Team Info'!N35=\"Withdrawn\",\"** WD **\",'Team Info'!J35))","v":""},{"$f":"IF(ISBLANK('Team Info'!K35),\"\",'Team Info'!K35)","v":""},{"$f":"IF(ISBLANK('Team Info'!L35),\"\",IF('Team Info'!N35=\"Withdrawn\",\"** WD **\",'Team Info'!L35))","v":""},{"$f":"IF(ISBLANK('Team Info'!M35),\"\",'Team Info'!M35)","v":""}]
[{"$f":"IF(ISBLANK('Team Info'!F36),\"\",'Team Info'!F36)","v":""},{"$f":"IF(ISBLANK('Team Info'!C36),\"\",'Team Info'!C36)","v":""},{"$f":"IF(ISBLANK('Team Info'!D36),\"\",'Team Info'!D36)","v":""},{"$f":"IF(ISBLANK('Team Info'!E36),\"\",'Team Info'!E36)","v":""},{"$f":"IF('Team Info'!N36=\"Withdrawn\",\"WITHDRAWN\",'Team Info'!A36)","v":20},{"$f":"IF(ISBLANK('Team Info'!J36),\"\",IF('Team Info'!N36=\"Withdrawn\",\"** WD **\",'Team Info'!J36))","v":""},{"$f":"IF(ISBLANK('Team Info'!K36),\"\",'Team Info'!K36)","v":""},{"$f":"IF(ISBLANK('Team Info'!L36),\"\",IF('Team Info'!N36=\"Withdrawn\",\"** WD **\",'Team Info'!L36))","v":""},{"$f":"IF(ISBLANK('Team Info'!M36),\"\",'Team Info'!M36)","v":""}]
[{"$f":"IF(ISBLANK('Team Info'!F37),\"\",'Team Info'!F37)","v":""},{"$f":"IF(ISBLANK('Team Info'!C37),\"\",'Team Info'!C37)","v":""},{"$f":"IF(ISBLANK('Team Info'!D37),\"\",'Team Info'!D37)","v":""},{"$f":"IF(ISBLANK('Team Info'!E37),\"\",'Team Info'!E37)","v":""},{"$f":"IF('Team Info'!N37=\"Withdrawn\",\"WITHDRAWN\",'Team Info'!A37)","v":21},{"$f":"IF(ISBLANK('Team Info'!J37),\"\",IF('Team Info'!N37=\"Withdrawn\",\"** WD **\",'Team Info'!J37))","v":""},{"$f":"IF(ISBLANK('Team Info'!K37),\"\",'Team Info'!K37)","v":""},{"$f":"IF(ISBLANK('Team Info'!L37),\"\",IF('Team Info'!N37=\"Withdrawn\",\"** WD **\",'Team Info'!L37))","v":""},{"$f":"IF(ISBLANK('Team Info'!M37),\"\",'Team Info'!M37)","v":""}]
[{"$f":"IF(ISBLANK('Team Info'!F38),\"\",'Team Info'!F38)","v":""},{"$f":"IF(ISBLANK('Team Info'!C38),\"\",'Team Info'!C38)","v":""},{"$f":"IF(ISBLANK('Team Info'!D38),\"\",'Team Info'!D38)","v":""},{"$f":"IF(ISBLANK('Team Info'!E38),\"\",'Team Info'!E38)","v":""},{"$f":"IF('Team Info'!N38=\"Withdrawn\",\"WITHDRAWN\",'Team Info'!A38)","v":22},{"$f":"IF(ISBLANK('Team Info'!J38),\"\",IF('Team Info'!N38=\"Withdrawn\",\"** WD **\",'Team Info'!J38))","v":""},{"$f":"IF(ISBLANK('Team Info'!K38),\"\",'Team Info'!K38)","v":""},{"$f":"IF(ISBLANK('Team Info'!L38),\"\",IF('Team Info'!N38=\"Withdrawn\",\"** WD **\",'Team Info'!L38))","v":""},{"$f":"IF(ISBLANK('Team Info'!M38),\"\",'Team Info'!M38)","v":""}]
[{"$f":"IF(ISBLANK('Team Info'!F39),\"\",'Team Info'!F39)","v":""},{"$f":"IF(ISBLANK('Team Info'!C39),\"\",'Team Info'!C39)","v":""},{"$f":"IF(ISBLANK('Team Info'!D39),\"\",'Team Info'!D39)","v":""},{"$f":"IF(ISBLANK('Team Info'!E39),\"\",'Team Info'!E39)","v":""},{"$f":"IF('Team Info'!N39=\"Withdrawn\",\"WITHDRAWN\",'Team Info'!A39)","v":23},{"$f":"IF(ISBLANK('Team Info'!J39),\"\",IF('Team Info'!N39=\"Withdrawn\",\"** WD **\",'Team Info'!J39))","v":""},{"$f":"IF(ISBLANK('Team Info'!K39),\"\",'Team Info'!K39)","v":""},{"$f":"IF(ISBLANK('Team Info'!L39),\"\",IF('Team Info'!N39=\"Withdrawn\",\"** WD **\",'Team Info'!L39))","v":""},{"$f":"IF(ISBLANK('Team Info'!M39),\"\",'Team Info'!M39)","v":""}]
[{"$f":"IF(ISBLANK('Team Info'!F40),\"\",'Team Info'!F40)","v":""},{"$f":"IF(ISBLANK('Team Info'!C40),\"\",'Team Info'!C40)","v":""},{"$f":"IF(ISBLANK('Team Info'!D40),\"\",'Team Info'!D40)","v":""},{"$f":"IF(ISBLANK('Team Info'!E40),\"\",'Team Info'!E40)","v":""},{"$f":"IF('Team Info'!N40=\"Withdrawn\",\"WITHDRAWN\",'Team Info'!A40)","v":24},{"$f":"IF(ISBLANK('Team Info'!J40),\"\",IF('Team Info'!N40=\"Withdrawn\",\"** WD **\",'Team Info'!J40))","v":""},{"$f":"IF(ISBLANK('Team Info'!K40),\"\",'Team Info'!K40)","v":""},{"$f":"IF(ISBLANK('Team Info'!L40),\"\",IF('Team Info'!N40=\"Withdrawn\",\"** WD **\",'Team Info'!L40))","v":""},{"$f":"IF(ISBLANK('Team Info'!M40),\"\",'Team Info'!M40)","v":""}]
[{"$f":"IF(ISBLANK('Team Info'!F41),\"\",'Team Info'!F41)","v":""},{"$f":"IF(ISBLANK('Team Info'!C41),\"\",'Team Info'!C41)","v":""},{"$f":"IF(ISBLANK('Team Info'!D41),\"\",'Team Info'!D41)","v":""},{"$f":"IF(ISBLANK('Team Info'!E41),\"\",'Team Info'!E41)","v":""},{"$f":"IF('Team Info'!N41=\"Withdrawn\",\"WITHDRAWN\",'Team Info'!A41)","v":25},{"$f":"IF(ISBLANK('Team Info'!J41),\"\",IF('Team Info'!N41=\"Withdrawn\",\"** WD **\",'Team Info'!J41))","v":""},{"$f":"IF(ISBLANK('Team Info'!K41),\"\",'Team Info'!K41)","v":""},{"$f":"IF(ISBLANK('Team Info'!L41),\"\",IF('Team Info'!N41=\"Withdrawn\",\"** WD **\",'Team Info'!L41))","v":""},{"$f":"IF(ISBLANK('Team Info'!M41),\"\",'Team Info'!M41)","v":""}]
[{"$f":"IF(ISBLANK('Team Info'!F42),\"\",'Team Info'!F42)","v":""},{"$f":"IF(ISBLANK('Team Info'!C42),\"\",'Team Info'!C42)","v":""},{"$f":"IF(ISBLANK('Team Info'!D42),\"\",'Team Info'!D42)","v":""},{"$f":"IF(ISBLANK('Team Info'!E42),\"\",'Team Info'!E42)","v":""},{"$f":"IF('Team Info'!N42=\"Withdrawn\",\"WITHDRAWN\",'Team Info'!A42)","v":26},{"$f":"IF(ISBLANK('Team Info'!J42),\"\",IF('Team Info'!N42=\"Withdrawn\",\"** WD **\",'Team Info'!J42))","v":""},{"$f":"IF(ISBLANK('Team Info'!K42),\"\",'Team Info'!K42)","v":""},{"$f":"IF(ISBLANK('Team Info'!L42),\"\",IF('Team Info'!N42=\"Withdrawn\",\"** WD **\",'Team Info'!L42))","v":""},{"$f":"IF(ISBLANK('Team Info'!M42),\"\",'Team Info'!M42)","v":""}]
[{"$f":"IF(ISBLANK('Team Info'!F43),\"\",'Team Info'!F43)","v":""},{"$f":"IF(ISBLANK('Team Info'!C43),\"\",'Team Info'!C43)","v":""},{"$f":"IF(ISBLANK('Team Info'!D43),\"\",'Team Info'!D43)","v":""},{"$f":"IF(ISBLANK('Team Info'!E43),\"\",'Team Info'!E43)","v":""},{"$f":"IF('Team Info'!N43=\"Withdrawn\",\"WITHDRAWN\",'Team Info'!A43)","v":27},{"$f":"IF(ISBLANK('Team Info'!J43),\"\",IF('Team Info'!N43=\"Withdrawn\",\"** WD **\",'Team Info'!J43))","v":""},{"$f":"IF(ISBLANK('Team Info'!K43),\"\",'Team Info'!K43)","v":""},{"$f":"IF(ISBLANK('Team Info'!L43),\"\",IF('Team Info'!N43=\"Withdrawn\",\"** WD **\",'Team Info'!L43))","v":""},{"$f":"IF(ISBLANK('Team Info'!M43),\"\",'Team Info'!M43)","v":""}]
[{"$f":"IF(ISBLANK('Team Info'!F44),\"\",'Team Info'!F44)","v":""},{"$f":"IF(ISBLANK('Team Info'!C44),\"\",'Team Info'!C44)","v":""},{"$f":"IF(ISBLANK('Team Info'!D44),\"\",'Team Info'!D44)","v":""},{"$f":"IF(ISBLANK('Team Info'!E44),\"\",'Team Info'!E44)","v":""},{"$f":"IF('Team Info'!N44=\"Withdrawn\",\"WITHDRAWN\",'Team Info'!A44)","v":28},{"$f":"IF(ISBLANK('Team Info'!J44),\"\",IF('Team Info'!N44=\"Withdrawn\",\"** WD **\",'Team Info'!J44))","v":""},{"$f":"IF(ISBLANK('Team Info'!K44),\"\",'Team Info'!K44)","v":""},{"$f":"IF(ISBLANK('Team Info'!L44),\"\",IF('Team Info'!N44=\"Withdrawn\",\"** WD **\",'Team Info'!L44))","v":""},{"$f":"IF(ISBLANK('Team Info'!M44),\"\",'Team Info'!M44)","v":""}]
[{"$f":"IF(ISBLANK('Team Info'!F45),\"\",'Team Info'!F45)","v":""},{"$f":"IF(ISBLANK('Team Info'!C45),\"\",'Team Info'!C45)","v":""},{"$f":"IF(ISBLANK('Team Info'!D45),\"\",'Team Info'!D45)","v":""},{"$f":"IF(ISBLANK('Team Info'!E45),\"\",'Team Info'!E45)","v":""},{"$f":"IF('Team Info'!N45=\"Withdrawn\",\"WITHDRAWN\",'Team Info'!A45)","v":29},{"$f":"IF(ISBLANK('Team Info'!J45),\"\",IF('Team Info'!N45=\"Withdrawn\",\"** WD **\",'Team Info'!J45))","v":""},{"$f":"IF(ISBLANK('Team Info'!K45),\"\",'Team Info'!K45)","v":""},{"$f":"IF(ISBLANK('Team Info'!L45),\"\",IF('Team Info'!N45=\"Withdrawn\",\"** WD **\",'Team Info'!L45))","v":""},{"$f":"IF(ISBLANK('Team Info'!M45),\"\",'Team Info'!M45)","v":""}]
[{"$f":"IF(ISBLANK('Team Info'!F46),\"\",'Team Info'!F46)","v":""},{"$f":"IF(ISBLANK('Team Info'!C46),\"\",'Team Info'!C46)","v":""},{"$f":"IF(ISBLANK('Team Info'!D46),\"\",'Team Info'!D46)","v":""},{"$f":"IF(ISBLANK('Team Info'!E46),\"\",'Team Info'!E46)","v":""},{"$f":"IF('Team Info'!N46=\"Withdrawn\",\"WITHDRAWN\",'Team Info'!A46)","v":30},{"$f":"IF(ISBLANK('Team Info'!J46),\"\",IF('Team Info'!N46=\"Withdrawn\",\"** WD **\",'Team Info'!J46))","v":""},{"$f":"IF(ISBLANK('Team Info'!K46),\"\",'Team Info'!K46)","v":""},{"$f":"IF(ISBLANK('Team Info'!L46),\"\",IF('Team Info'!N46=\"Withdrawn\",\"** WD **\",'Team Info'!L46))","v":""},{"$f":"IF(ISBLANK('Team Info'!M46),\"\",'Team Info'!M46)","v":""}]

{"sheet":"Principal Permission","index":3,"n_rows":55,"n_cols":6,"rows_kept":55,"cut":false,"hidden":false,"merged":[[16,0,16,3],[18,0,18,3],[19,0,19,3],[20,0,20,3],[5,0,5,3],[6,0,6,3],[11,0,11,3],[12,0,12,3],[13,0,13,3],[15,0,15,3]]}
[]
[]
["Dear Principal,"]
[]
[]
[{"$f":"\"The students listed below have been invited to join the Sunshine Coast regional \"","v":"The students listed below have been invited to join the Sunshine Coast regional "}]
[{"$f":"'Team Info'!C4 &\" team.  Departmental approval has been given for this activity.\"","v":" team.  Departmental approval has been given for this activity."}]
[]
["State championship dates: . . . . . ."]
["Location: . . . . . . . . . . . . . . . . . . . ."]
[]
["Please confirm that each student in the list below are still enrolled at your school campus"]
["and that they have your permission to attend this activity by replying to this email and"]
["entering their date of birth in the DOB cell next to their name."]
[]
["If a student listed below does not have approval to attend this event, please write "]
["\"not approve\" in the DOB cell for that student."]
[]
["Principal Certification:"]
["I certify that the students listed below are enrolled at this school.  I approve for them to"]
["attend the QRSS state championship on the dates above and at the location above."]
[]
[]
[]
["Playing Number"," Name (First Name Surname)","School","DOB DD/MM/YY",null,"Email Address to use"]
[{"$f":"IF(ISBLANK('Team Info'!A17),\"\",'Team Info'!A17)","v":1},{"$f":"IF(ISBLANK('Team Info'!C17),\"\",'Team Info'!C17&\" \"&'Team Info'!D17)","v":""},{"$f":"IF(ISBLANK('Team Info'!E17),\"\",'Team Info'!E17)","v":""},null,null,{"$f":"INDEX(Sheet2!$B$79:$B$255, MATCH(TRUE,INDEX(Sheet2!$A$79:$A$250='Principal Permission'!C26,0),0))","v":{"$error":"#N/A"}}]
[{"$f":"IF(ISBLANK('Team Info'!A18),\"\",'Team Info'!A18)","v":2},{"$f":"IF(ISBLANK('Team Info'!C18),\"\",'Team Info'!C18&\" \"&'Team Info'!D18)","v":""},{"$f":"IF(ISBLANK('Team Info'!E18),\"\",'Team Info'!E18)","v":""},null,null,{"$f":"INDEX(Sheet2!$B$79:$B$255, MATCH(TRUE,INDEX(Sheet2!$A$79:$A$250='Principal Permission'!C27,0),0))","v":{"$error":"#N/A"}}]
[{"$f":"IF(ISBLANK('Team Info'!A19),\"\",'Team Info'!A19)","v":3},{"$f":"IF(ISBLANK('Team Info'!C19),\"\",'Team Info'!C19&\" \"&'Team Info'!D19)","v":""},{"$f":"IF(ISBLANK('Team Info'!E19),\"\",'Team Info'!E19)","v":""},null,null,{"$f":"INDEX(Sheet2!$B$79:$B$255, MATCH(TRUE,INDEX(Sheet2!$A$79:$A$250='Principal Permission'!C28,0),0))","v":{"$error":"#N/A"}}]
[{"$f":"IF(ISBLANK('Team Info'!A20),\"\",'Team Info'!A20)","v":4},{"$f":"IF(ISBLANK('Team Info'!C20),\"\",'Team Info'!C20&\" \"&'Team Info'!D20)","v":""},{"$f":"IF(ISBLANK('Team Info'!E20),\"\",'Team Info'!E20)","v":""},null,null,{"$f":"INDEX(Sheet2!$B$79:$B$255, MATCH(TRUE,INDEX(Sheet2!$A$79:$A$250='Principal Permission'!C29,0),0))","v":{"$error":"#N/A"}}]
[{"$f":"IF(ISBLANK('Team Info'!A21),\"\",'Team Info'!A21)","v":5},{"$f":"IF(ISBLANK('Team Info'!C21),\"\",'Team Info'!C21&\" \"&'Team Info'!D21)","v":""},{"$f":"IF(ISBLANK('Team Info'!E21),\"\",'Team Info'!E21)","v":""},null,null,{"$f":"INDEX(Sheet2!$B$79:$B$255, MATCH(TRUE,INDEX(Sheet2!$A$79:$A$250='Principal Permission'!C30,0),0))","v":{"$error":"#N/A"}}]
[{"$f":"IF(ISBLANK('Team Info'!A22),\"\",'Team Info'!A22)","v":6},{"$f":"IF(ISBLANK('Team Info'!C22),\"\",'Team Info'!C22&\" \"&'Team Info'!D22)","v":""},{"$f":"IF(ISBLANK('Team Info'!E22),\"\",'Team Info'!E22)","v":""},null,null,{"$f":"INDEX(Sheet2!$B$79:$B$255, MATCH(TRUE,INDEX(Sheet2!$A$79:$A$250='Principal Permission'!C31,0),0))","v":{"$error":"#N/A"}}]
[{"$f":"IF(ISBLANK('Team Info'!A23),\"\",'Team Info'!A23)","v":7},{"$f":"IF(ISBLANK('Team Info'!C23),\"\",'Team Info'!C23&\" \"&'Team Info'!D23)","v":""},{"$f":"IF(ISBLANK('Team Info'!E23),\"\",'Team Info'!E23)","v":""},null,null,{"$f":"INDEX(Sheet2!$B$79:$B$255, MATCH(TRUE,INDEX(Sheet2!$A$79:$A$250='Principal Permission'!C32,0),0))","v":{"$error":"#N/A"}}]
[{"$f":"IF(ISBLANK('Team Info'!A24),\"\",'Team Info'!A24)","v":8},{"$f":"IF(ISBLANK('Team Info'!C24),\"\",'Team Info'!C24&\" \"&'Team Info'!D24)","v":""},{"$f":"IF(ISBLANK('Team Info'!E24),\"\",'Team Info'!E24)","v":""},null,null,{"$f":"INDEX(Sheet2!$B$79:$B$255, MATCH(TRUE,INDEX(Sheet2!$A$79:$A$250='Principal Permission'!C33,0),0))","v":{"$error":"#N/A"}}]
[{"$f":"IF(ISBLANK('Team Info'!A25),\"\",'Team Info'!A25)","v":9},{"$f":"IF(ISBLANK('Team Info'!C25),\"\",'Team Info'!C25&\" \"&'Team Info'!D25)","v":""},{"$f":"IF(ISBLANK('Team Info'!E25),\"\",'Team Info'!E25)","v":""},null,null,{"$f":"INDEX(Sheet2!$B$79:$B$255, MATCH(TRUE,INDEX(Sheet2!$A$79:$A$250='Principal Permission'!C34,0),0))","v":{"$error":"#N/A"}}]
[{"$f":"IF(ISBLANK('Team Info'!A26),\"\",'Team Info'!A26)","v":10},{"$f":"IF(ISBLANK('Team Info'!C26),\"\",'Team Info'!C26&\" \"&'Team Info'!D26)","v":""},{"$f":"IF(ISBLANK('Team Info'!E26),\"\",'Team Info'!E26)","v":""},null,null,{"$f":"INDEX(Sheet2!$B$79:$B$255, MATCH(TRUE,INDEX(Sheet2!$A$79:$A$250='Principal Permission'!C35,0),0))","v":{"$error":"#N/A"}}]
[{"$f":"IF(ISBLANK('Team Info'!A27),\"\",'Team Info'!A27)","v":11},{"$f":"IF(ISBLANK('Team Info'!C27),\"\",'Team Info'!C27&\" \"&'Team Info'!D27)","v":""},{"$f":"IF(ISBLANK('Team Info'!E27),\"\",'Team Info'!E27)","v":""},null,null,{"$f":"INDEX(Sheet2!$B$79:$B$255, MATCH(TRUE,INDEX(Sheet2!$A$79:$A$250='Principal Permission'!C36,0),0))","v":{"$error":"#N/A"}}]
[{"$f":"IF(ISBLANK('Team Info'!A28),\"\",'Team Info'!A28)","v":12},{"$f":"IF(ISBLANK('Team Info'!C28),\"\",'Team Info'!C28&\" \"&'Team Info'!D28)","v":""},{"$f":"IF(ISBLANK('Team Info'!E28),\"\",'Team Info'!E28)","v":""},null,null,{"$f":"INDEX(Sheet2!$B$79:$B$255, MATCH(TRUE,INDEX(Sheet2!$A$79:$A$250='Principal Permission'!C37,0),0))","v":{"$error":"#N/A"}}]
[{"$f":"IF(ISBLANK('Team Info'!A29),\"\",'Team Info'!A29)","v":13},{"$f":"IF(ISBLANK('Team Info'!C29),\"\",'Team Info'!C29&\" \"&'Team Info'!D29)","v":""},{"$f":"IF(ISBLANK('Team Info'!E29),\"\",'Team Info'!E29)","v":""},null,null,{"$f":"INDEX(Sheet2!$B$79:$B$255, MATCH(TRUE,INDEX(Sheet2!$A$79:$A$250='Principal Permission'!C38,0),0))","v":{"$error":"#N/A"}}]
[{"$f":"IF(ISBLANK('Team Info'!A30),\"\",'Team Info'!A30)","v":14},{"$f":"IF(ISBLANK('Team Info'!C30),\"\",'Team Info'!C30&\" \"&'Team Info'!D30)","v":""},{"$f":"IF(ISBLANK('Team Info'!E30),\"\",'Team Info'!E30)","v":""},null,null,{"$f":"INDEX(Sheet2!$B$79:$B$255, MATCH(TRUE,INDEX(Sheet2!$A$79:$A$250='Principal Permission'!C39,0),0))","v":{"$error":"#N/A"}}]
[{"$f":"IF(ISBLANK('Team Info'!A31),\"\",'Team Info'!A31)","v":15},{"$f":"IF(ISBLANK('Team Info'!C31),\"\",'Team Info'!C31&\" \"&'Team Info'!D31)","v":""},{"$f":"IF(ISBLANK('Team Info'!E31),\"\",'Team Info'!E31)","v":""},null,null,{"$f":"INDEX(Sheet2!$B$79:$B$255, MATCH(TRUE,INDEX(Sheet2!$A$79:$A$250='Principal Permission'!C40,0),0))","v":{"$error":"#N/A"}}]
[{"$f":"IF(ISBLANK('Team Info'!A32),\"\",'Team Info'!A32)","v":16},{"$f":"IF(ISBLANK('Team Info'!C32),\"\",'Team Info'!C32&\" \"&'Team Info'!D32)","v":""},{"$f":"IF(ISBLANK('Team Info'!E32),\"\",'Team Info'!E32)","v":""},null,null,{"$f":"INDEX(Sheet2!$B$79:$B$255, MATCH(TRUE,INDEX(Sheet2!$A$79:$A$250='Principal Permission'!C41,0),0))","v":{"$error":"#N/A"}}]
[{"$f":"IF(ISBLANK('Team Info'!A33),\"\",'Team Info'!A33)","v":17},{"$f":"IF(ISBLANK('Team Info'!C33),\"\",'Team Info'!C33&\" \"&'Team Info'!D33)","v":""},{"$f":"IF(ISBLANK('Team Info'!E33),\"\",'Team Info'!E33)","v":""},null,null,{"$f":"INDEX(Sheet2!$B$79:$B$255, MATCH(TRUE,INDEX(Sheet2!$A$79:$A$250='Principal Permission'!C42,0),0))","v":{"$error":"#N/A"}}]
[{"$f":"IF(ISBLANK('Team Info'!A34),\"\",'Team Info'!A34)","v":18},{"$f":"IF(ISBLANK('Team Info'!C34),\"\",'Team Info'!C34&\" \"&'Team Info'!D34)","v":""},{"$f":"IF(ISBLANK('Team Info'!E34),\"\",'Team Info'!E34)","v":""},null,null,{"$f":"INDEX(Sheet2!$B$79:$B$255, MATCH(TRUE,INDEX(Sheet2!$A$79:$A$250='Principal Permission'!C43,0),0))","v":{"$error":"#N/A"}}]
[{"$f":"IF(ISBLANK('Team Info'!A35),\"\",'Team Info'!A35)","v":19},{"$f":"IF(ISBLANK('Team Info'!C35),\"\",'Team Info'!C35&\" \"&'Team Info'!D35)","v":""},{"$f":"IF(ISBLANK('Team Info'!E35),\"\",'Team Info'!E35)","v":""},null,null,{"$f":"INDEX(Sheet2!$B$79:$B$255, MATCH(TRUE,INDEX(Sheet2!$A$79:$A$250='Principal Permission'!C44,0),0))","v":{"$error":"#N/A"}}]
[{"$f":"IF(ISBLANK('Team Info'!A36),\"\",'Team Info'!A36)","v":20},{"$f":"IF(ISBLANK('Team Info'!C36),\"\",'Team Info'!C36&\" \"&'Team Info'!D36)","v":""},{"$f":"IF(ISBLANK('Team Info'!E36),\"\",'Team Info'!E36)","v":""},null,null,{"$f":"INDEX(Sheet2!$B$79:$B$255, MATCH(TRUE,INDEX(Sheet2!$A$79:$A$250='Principal Permission'!C45,0),0))","v":{"$error":"#N/A"}}]
[{"$f":"IF(ISBLANK('Team Info'!A37),\"\",'Team Info'!A37)","v":21},{"$f":"IF(ISBLANK('Team Info'!C37),\"\",'Team Info'!C37&\" \"&'Team Info'!D37)","v":""},{"$f":"IF(ISBLANK('Team Info'!E37),\"\",'Team Info'!E37)","v":""},null,null,{"$f":"INDEX(Sheet2!$B$79:$B$255, MATCH(TRUE,INDEX(Sheet2!$A$79:$A$250='Principal Permission'!C46,0),0))","v":{"$error":"#N/A"}}]
[{"$f":"IF(ISBLANK('Team Info'!A38),\"\",'Team Info'!A38)","v":22},{"$f":"IF(ISBLANK('Team Info'!C38),\"\",'Team Info'!C38&\" \"&'Team Info'!D38)","v":""},{"$f":"IF(ISBLANK('Team Info'!E38),\"\",'Team Info'!E38)","v":""},null,null,{"$f":"INDEX(Sheet2!$B$79:$B$255, MATCH(TRUE,INDEX(Sheet2!$A$79:$A$250='Principal Permission'!C47,0),0))","v":{"$error":"#N/A"}}]
[{"$f":"IF(ISBLANK('Team Info'!A39),\"\",'Team Info'!A39)","v":23},{"$f":"IF(ISBLANK('Team Info'!C39),\"\",'Team Info'!C39&\" \"&'Team Info'!D39)","v":""},{"$f":"IF(ISBLANK('Team Info'!E39),\"\",'Team Info'!E39)","v":""},null,null,{"$f":"INDEX(Sheet2!$B$79:$B$255, MATCH(TRUE,INDEX(Sheet2!$A$79:$A$250='Principal Permission'!C48,0),0))","v":{"$error":"#N/A"}}]
[{"$f":"IF(ISBLANK('Team Info'!A40),\"\",'Team Info'!A40)","v":24},{"$f":"IF(ISBLANK('Team Info'!C40),\"\",'Team Info'!C40&\" \"&'Team Info'!D40)","v":""},{"$f":"IF(ISBLANK('Team Info'!E40),\"\",'Team Info'!E40)","v":""},null,null,{"$f":"INDEX(Sheet2!$B$79:$B$255, MATCH(TRUE,INDEX(Sheet2!$A$79:$A$250='Principal Permission'!C49,0),0))","v":{"$error":"#N/A"}}]
[{"$f":"IF(ISBLANK('Team Info'!A41),\"\",'Team Info'!A41)","v":25},{"$f":"IF(ISBLANK('Team Info'!C41),\"\",'Team Info'!C41&\" \"&'Team Info'!D41)","v":""},{"$f":"IF(ISBLANK('Team Info'!E41),\"\",'Team Info'!E41)","v":""},null,null,{"$f":"INDEX(Sheet2!$B$79:$B$255, MATCH(TRUE,INDEX(Sheet2!$A$79:$A$250='Principal Permission'!C50,0),0))","v":{"$error":"#N/A"}}]
[{"$f":"IF(ISBLANK('Team Info'!A42),\"\",'Team Info'!A42)","v":26},{"$f":"IF(ISBLANK('Team Info'!C42),\"\",'Team Info'!C42&\" \"&'Team Info'!D42)","v":""},{"$f":"IF(ISBLANK('Team Info'!E42),\"\",'Team Info'!E42)","v":""},null,null,{"$f":"INDEX(Sheet2!$B$79:$B$255, MATCH(TRUE,INDEX(Sheet2!$A$79:$A$250='Principal Permission'!C51,0),0))","v":{"$error":"#N/A"}}]
[{"$f":"IF(ISBLANK('Team Info'!A43),\"\",'Team Info'!A43)","v":27},{"$f":"IF(ISBLANK('Team Info'!C43),\"\",'Team Info'!C43&\" \"&'Team Info'!D43)","v":""},{"$f":"IF(ISBLANK('Team Info'!E43),\"\",'Team Info'!E43)","v":""},null,null,{"$f":"INDEX(Sheet2!$B$79:$B$255, MATCH(TRUE,INDEX(Sheet2!$A$79:$A$250='Principal Permission'!C52,0),0))","v":{"$error":"#N/A"}}]
[{"$f":"IF(ISBLANK('Team Info'!A44),\"\",'Team Info'!A44)","v":28},{"$f":"IF(ISBLANK('Team Info'!C44),\"\",'Team Info'!C44&\" \"&'Team Info'!D44)","v":""},{"$f":"IF(ISBLANK('Team Info'!E44),\"\",'Team Info'!E44)","v":""},null,null,{"$f":"INDEX(Sheet2!$B$79:$B$255, MATCH(TRUE,INDEX(Sheet2!$A$79:$A$250='Principal Permission'!C53,0),0))","v":{"$error":"#N/A"}}]
[{"$f":"IF(ISBLANK('Team Info'!A45),\"\",'Team Info'!A45)","v":29},{"$f":"IF(ISBLANK('Team Info'!C45),\"\",'Team Info'!C45&\" \"&'Team Info'!D45)","v":""},{"$f":"IF(ISBLANK('Team Info'!E45),\"\",'Team Info'!E45)","v":""},null,null,{"$f":"INDEX(Sheet2!$B$79:$B$255, MATCH(TRUE,INDEX(Sheet2!$A$79:$A$250='Principal Permission'!C54,0),0))","v":{"$error":"#N/A"}}]
[{"$f":"IF(ISBLANK('Team Info'!A46),\"\",'Team Info'!A46)","v":30},{"$f":"IF(ISBLANK('Team Info'!C46),\"\",'Team Info'!C46&\" \"&'Team Info'!D46)","v":""},{"$f":"IF(ISBLANK('Team Info'!E46),\"\",'Team Info'!E46)","v":""},null,null,{"$f":"INDEX(Sheet2!$B$79:$B$255, MATCH(TRUE,INDEX(Sheet2!$A$79:$A$250='Principal Permission'!C55,0),0))","v":{"$error":"#N/A"}}]

{"sheet":"Team Checklist","index":4,"n_rows":39,"n_cols":14,"rows_kept":39,"cut":false,"hidden":false,"merged":[[3,1,3,3],[5,1,5,3]]}
[]
[{"$f":"\"Team Member Checklist: \"&B4","v":"Team Member Checklist: 0"}]
[]
["Team:",{"$f":"'Team Info'!C4","v":0}]
[]
["Region:",{"$f":"'Team Info'!C6","v":"Sunshine Coast"}]
[]
[]
["Playing No","First Name","Last Name","School","Accept Offer","Permission Form","Consent Form Returned","Principal Approval","Medical Alert","Medical Clearance","Paid","Other","Other 2","Comments"]
[{"$f":"'Team Info'!A17","v":1},{"$f":"IF(ISBLANK('Team Info'!C17),\"\",'Team Info'!C17)","v":""},{"$f":"IF(ISBLANK('Team Info'!D17),\"\",'Team Info'!D17)","v":""},{"$f":"IF(ISBLANK('Team Info'!E17),\"\",'Team Info'!E17)","v":""}]
[{"$f":"'Team Info'!A18","v":2},{"$f":"IF(ISBLANK('Team Info'!C18),\"\",'Team Info'!C18)","v":""},{"$f":"IF(ISBLANK('Team Info'!D18),\"\",'Team Info'!D18)","v":""},{"$f":"IF(ISBLANK('Team Info'!E18),\"\",'Team Info'!E18)","v":""}]
[{"$f":"'Team Info'!A19","v":3},{"$f":"IF(ISBLANK('Team Info'!C19),\"\",'Team Info'!C19)","v":""},{"$f":"IF(ISBLANK('Team Info'!D19),\"\",'Team Info'!D19)","v":""},{"$f":"IF(ISBLANK('Team Info'!E19),\"\",'Team Info'!E19)","v":""}]
[{"$f":"'Team Info'!A20","v":4},{"$f":"IF(ISBLANK('Team Info'!C20),\"\",'Team Info'!C20)","v":""},{"$f":"IF(ISBLANK('Team Info'!D20),\"\",'Team Info'!D20)","v":""},{"$f":"IF(ISBLANK('Team Info'!E20),\"\",'Team Info'!E20)","v":""}]
[{"$f":"'Team Info'!A21","v":5},{"$f":"IF(ISBLANK('Team Info'!C21),\"\",'Team Info'!C21)","v":""},{"$f":"IF(ISBLANK('Team Info'!D21),\"\",'Team Info'!D21)","v":""},{"$f":"IF(ISBLANK('Team Info'!E21),\"\",'Team Info'!E21)","v":""}]
[{"$f":"'Team Info'!A22","v":6},{"$f":"IF(ISBLANK('Team Info'!C22),\"\",'Team Info'!C22)","v":""},{"$f":"IF(ISBLANK('Team Info'!D22),\"\",'Team Info'!D22)","v":""},{"$f":"IF(ISBLANK('Team Info'!E22),\"\",'Team Info'!E22)","v":""}]
[{"$f":"'Team Info'!A23","v":7},{"$f":"IF(ISBLANK('Team Info'!C23),\"\",'Team Info'!C23)","v":""},{"$f":"IF(ISBLANK('Team Info'!D23),\"\",'Team Info'!D23)","v":""},{"$f":"IF(ISBLANK('Team Info'!E23),\"\",'Team Info'!E23)","v":""}]
[{"$f":"'Team Info'!A24","v":8},{"$f":"IF(ISBLANK('Team Info'!C24),\"\",'Team Info'!C24)","v":""},{"$f":"IF(ISBLANK('Team Info'!D24),\"\",'Team Info'!D24)","v":""},{"$f":"IF(ISBLANK('Team Info'!E24),\"\",'Team Info'!E24)","v":""}]
[{"$f":"'Team Info'!A25","v":9},{"$f":"IF(ISBLANK('Team Info'!C25),\"\",'Team Info'!C25)","v":""},{"$f":"IF(ISBLANK('Team Info'!D25),\"\",'Team Info'!D25)","v":""},{"$f":"IF(ISBLANK('Team Info'!E25),\"\",'Team Info'!E25)","v":""}]
[{"$f":"'Team Info'!A26","v":10},{"$f":"IF(ISBLANK('Team Info'!C26),\"\",'Team Info'!C26)","v":""},{"$f":"IF(ISBLANK('Team Info'!D26),\"\",'Team Info'!D26)","v":""},{"$f":"IF(ISBLANK('Team Info'!E26),\"\",'Team Info'!E26)","v":""}]
[{"$f":"'Team Info'!A27","v":11},{"$f":"IF(ISBLANK('Team Info'!C27),\"\",'Team Info'!C27)","v":""},{"$f":"IF(ISBLANK('Team Info'!D27),\"\",'Team Info'!D27)","v":""},{"$f":"IF(ISBLANK('Team Info'!E27),\"\",'Team Info'!E27)","v":""}]
[{"$f":"'Team Info'!A28","v":12},{"$f":"IF(ISBLANK('Team Info'!C28),\"\",'Team Info'!C28)","v":""},{"$f":"IF(ISBLANK('Team Info'!D28),\"\",'Team Info'!D28)","v":""},{"$f":"IF(ISBLANK('Team Info'!E28),\"\",'Team Info'!E28)","v":""}]
[{"$f":"'Team Info'!A29","v":13},{"$f":"IF(ISBLANK('Team Info'!C29),\"\",'Team Info'!C29)","v":""},{"$f":"IF(ISBLANK('Team Info'!D29),\"\",'Team Info'!D29)","v":""},{"$f":"IF(ISBLANK('Team Info'!E29),\"\",'Team Info'!E29)","v":""}]
[{"$f":"'Team Info'!A30","v":14},{"$f":"IF(ISBLANK('Team Info'!C30),\"\",'Team Info'!C30)","v":""},{"$f":"IF(ISBLANK('Team Info'!D30),\"\",'Team Info'!D30)","v":""},{"$f":"IF(ISBLANK('Team Info'!E30),\"\",'Team Info'!E30)","v":""}]
[{"$f":"'Team Info'!A31","v":15},{"$f":"IF(ISBLANK('Team Info'!C31),\"\",'Team Info'!C31)","v":""},{"$f":"IF(ISBLANK('Team Info'!D31),\"\",'Team Info'!D31)","v":""},{"$f":"IF(ISBLANK('Team Info'!E31),\"\",'Team Info'!E31)","v":""}]
[{"$f":"'Team Info'!A32","v":16},{"$f":"IF(ISBLANK('Team Info'!C32),\"\",'Team Info'!C32)","v":""},{"$f":"IF(ISBLANK('Team Info'!D32),\"\",'Team Info'!D32)","v":""},{"$f":"IF(ISBLANK('Team Info'!E32),\"\",'Team Info'!E32)","v":""}]
[{"$f":"'Team Info'!A33","v":17},{"$f":"IF(ISBLANK('Team Info'!C33),\"\",'Team Info'!C33)","v":""},{"$f":"IF(ISBLANK('Team Info'!D33),\"\",'Team Info'!D33)","v":""},{"$f":"IF(ISBLANK('Team Info'!E33),\"\",'Team Info'!E33)","v":""}]
[{"$f":"'Team Info'!A34","v":18},{"$f":"IF(ISBLANK('Team Info'!C34),\"\",'Team Info'!C34)","v":""},{"$f":"IF(ISBLANK('Team Info'!D34),\"\",'Team Info'!D34)","v":""},{"$f":"IF(ISBLANK('Team Info'!E34),\"\",'Team Info'!E34)","v":""}]
[{"$f":"'Team Info'!A35","v":19},{"$f":"IF(ISBLANK('Team Info'!C35),\"\",'Team Info'!C35)","v":""},{"$f":"IF(ISBLANK('Team Info'!D35),\"\",'Team Info'!D35)","v":""},{"$f":"IF(ISBLANK('Team Info'!E35),\"\",'Team Info'!E35)","v":""}]
[{"$f":"'Team Info'!A36","v":20},{"$f":"IF(ISBLANK('Team Info'!C36),\"\",'Team Info'!C36)","v":""},{"$f":"IF(ISBLANK('Team Info'!D36),\"\",'Team Info'!D36)","v":""},{"$f":"IF(ISBLANK('Team Info'!E36),\"\",'Team Info'!E36)","v":""}]
[{"$f":"'Team Info'!A37","v":21},{"$f":"IF(ISBLANK('Team Info'!C37),\"\",'Team Info'!C37)","v":""},{"$f":"IF(ISBLANK('Team Info'!D37),\"\",'Team Info'!D37)","v":""},{"$f":"IF(ISBLANK('Team Info'!E37),\"\",'Team Info'!E37)","v":""}]
[{"$f":"'Team Info'!A38","v":22},{"$f":"IF(ISBLANK('Team Info'!C38),\"\",'Team Info'!C38)","v":""},{"$f":"IF(ISBLANK('Team Info'!D38),\"\",'Team Info'!D38)","v":""},{"$f":"IF(ISBLANK('Team Info'!E38),\"\",'Team Info'!E38)","v":""}]
[{"$f":"'Team Info'!A39","v":23},{"$f":"IF(ISBLANK('Team Info'!C39),\"\",'Team Info'!C39)","v":""},{"$f":"IF(ISBLANK('Team Info'!D39),\"\",'Team Info'!D39)","v":""},{"$f":"IF(ISBLANK('Team Info'!E39),\"\",'Team Info'!E39)","v":""}]
[{"$f":"'Team Info'!A40","v":24},{"$f":"IF(ISBLANK('Team Info'!C40),\"\",'Team Info'!C40)","v":""},{"$f":"IF(ISBLANK('Team Info'!D40),\"\",'Team Info'!D40)","v":""},{"$f":"IF(ISBLANK('Team Info'!E40),\"\",'Team Info'!E40)","v":""}]
[{"$f":"'Team Info'!A41","v":25},{"$f":"IF(ISBLANK('Team Info'!C41),\"\",'Team Info'!C41)","v":""},{"$f":"IF(ISBLANK('Team Info'!D41),\"\",'Team Info'!D41)","v":""},{"$f":"IF(ISBLANK('Team Info'!E41),\"\",'Team Info'!E41)","v":""}]
[{"$f":"'Team Info'!A42","v":26},{"$f":"IF(ISBLANK('Team Info'!C42),\"\",'Team Info'!C42)","v":""},{"$f":"IF(ISBLANK('Team Info'!D42),\"\",'Team Info'!D42)","v":""},{"$f":"IF(ISBLANK('Team Info'!E42),\"\",'Team Info'!E42)","v":""}]
[{"$f":"'Team Info'!A43","v":27},{"$f":"IF(ISBLANK('Team Info'!C43),\"\",'Team Info'!C43)","v":""},{"$f":"IF(ISBLANK('Team Info'!D43),\"\",'Team Info'!D43)","v":""},{"$f":"IF(ISBLANK('Team Info'!E43),\"\",'Team Info'!E43)","v":""}]
[{"$f":"'Team Info'!A44","v":28},{"$f":"IF(ISBLANK('Team Info'!C44),\"\",'Team Info'!C44)","v":""},{"$f":"IF(ISBLANK('Team Info'!D44),\"\",'Team Info'!D44)","v":""},{"$f":"IF(ISBLANK('Team Info'!E44),\"\",'Team Info'!E44)","v":""}]
[{"$f":"'Team Info'!A45","v":29},{"$f":"IF(ISBLANK('Team Info'!C45),\"\",'Team Info'!C45)","v":""},{"$f":"IF(ISBLANK('Team Info'!D45),\"\",'Team Info'!D45)","v":""},{"$f":"IF(ISBLANK('Team Info'!E45),\"\",'Team Info'!E45)","v":""}]
[{"$f":"'Team Info'!A46","v":30},{"$f":"IF(ISBLANK('Team Info'!C46),\"\",'Team Info'!C46)","v":""},{"$f":"IF(ISBLANK('Team Info'!D46),\"\",'Team Info'!D46)","v":""},{"$f":"IF(ISBLANK('Team Info'!E46),\"\",'Team Info'!E46)","v":""}]

{"sheet":"Training Attendance","index":5,"n_rows":39,"n_cols":19,"rows_kept":39,"cut":false,"hidden":false,"merged":[[3,1,3,3],[5,1,5,3]]}
[]
[{"$f":"\"Training attendance: \"&B4","v":"Training attendance: 0"}]
[]
["Team:",{"$f":"'Team Info'!C4","v":0}]
[]
["Region:",{"$f":"'Team Info'!C6","v":"Sunshine Coast"}]
[]
[]
["Playing No","First Name","Last Name","School","Date 1","Date 2","Date 3","Date 4","Date 5","Date 6","Date 7","Date 8","Date 9","Date 10","Date 11","Date 12","Date 13","Date 14","Comments"]
[{"$f":"'Team Info'!A17","v":1},{"$f":"IF(ISBLANK('Team Info'!C17),\"\",'Team Info'!C17)","v":""},{"$f":"IF(ISBLANK('Team Info'!D17),\"\",'Team Info'!D17)","v":""},{"$f":"IF(ISBLANK('Team Info'!E17),\"\",'Team Info'!E17)","v":""}]
[{"$f":"'Team Info'!A18","v":2},{"$f":"IF(ISBLANK('Team Info'!C18),\"\",'Team Info'!C18)","v":""},{"$f":"IF(ISBLANK('Team Info'!D18),\"\",'Team Info'!D18)","v":""},{"$f":"IF(ISBLANK('Team Info'!E18),\"\",'Team Info'!E18)","v":""}]
[{"$f":"'Team Info'!A19","v":3},{"$f":"IF(ISBLANK('Team Info'!C19),\"\",'Team Info'!C19)","v":""},{"$f":"IF(ISBLANK('Team Info'!D19),\"\",'Team Info'!D19)","v":""},{"$f":"IF(ISBLANK('Team Info'!E19),\"\",'Team Info'!E19)","v":""}]
[{"$f":"'Team Info'!A20","v":4},{"$f":"IF(ISBLANK('Team Info'!C20),\"\",'Team Info'!C20)","v":""},{"$f":"IF(ISBLANK('Team Info'!D20),\"\",'Team Info'!D20)","v":""},{"$f":"IF(ISBLANK('Team Info'!E20),\"\",'Team Info'!E20)","v":""}]
[{"$f":"'Team Info'!A21","v":5},{"$f":"IF(ISBLANK('Team Info'!C21),\"\",'Team Info'!C21)","v":""},{"$f":"IF(ISBLANK('Team Info'!D21),\"\",'Team Info'!D21)","v":""},{"$f":"IF(ISBLANK('Team Info'!E21),\"\",'Team Info'!E21)","v":""}]
[{"$f":"'Team Info'!A22","v":6},{"$f":"IF(ISBLANK('Team Info'!C22),\"\",'Team Info'!C22)","v":""},{"$f":"IF(ISBLANK('Team Info'!D22),\"\",'Team Info'!D22)","v":""},{"$f":"IF(ISBLANK('Team Info'!E22),\"\",'Team Info'!E22)","v":""}]
[{"$f":"'Team Info'!A23","v":7},{"$f":"IF(ISBLANK('Team Info'!C23),\"\",'Team Info'!C23)","v":""},{"$f":"IF(ISBLANK('Team Info'!D23),\"\",'Team Info'!D23)","v":""},{"$f":"IF(ISBLANK('Team Info'!E23),\"\",'Team Info'!E23)","v":""}]
[{"$f":"'Team Info'!A24","v":8},{"$f":"IF(ISBLANK('Team Info'!C24),\"\",'Team Info'!C24)","v":""},{"$f":"IF(ISBLANK('Team Info'!D24),\"\",'Team Info'!D24)","v":""},{"$f":"IF(ISBLANK('Team Info'!E24),\"\",'Team Info'!E24)","v":""}]
[{"$f":"'Team Info'!A25","v":9},{"$f":"IF(ISBLANK('Team Info'!C25),\"\",'Team Info'!C25)","v":""},{"$f":"IF(ISBLANK('Team Info'!D25),\"\",'Team Info'!D25)","v":""},{"$f":"IF(ISBLANK('Team Info'!E25),\"\",'Team Info'!E25)","v":""}]
[{"$f":"'Team Info'!A26","v":10},{"$f":"IF(ISBLANK('Team Info'!C26),\"\",'Team Info'!C26)","v":""},{"$f":"IF(ISBLANK('Team Info'!D26),\"\",'Team Info'!D26)","v":""},{"$f":"IF(ISBLANK('Team Info'!E26),\"\",'Team Info'!E26)","v":""}]
[{"$f":"'Team Info'!A27","v":11},{"$f":"IF(ISBLANK('Team Info'!C27),\"\",'Team Info'!C27)","v":""},{"$f":"IF(ISBLANK('Team Info'!D27),\"\",'Team Info'!D27)","v":""},{"$f":"IF(ISBLANK('Team Info'!E27),\"\",'Team Info'!E27)","v":""}]
[{"$f":"'Team Info'!A28","v":12},{"$f":"IF(ISBLANK('Team Info'!C28),\"\",'Team Info'!C28)","v":""},{"$f":"IF(ISBLANK('Team Info'!D28),\"\",'Team Info'!D28)","v":""},{"$f":"IF(ISBLANK('Team Info'!E28),\"\",'Team Info'!E28)","v":""}]
[{"$f":"'Team Info'!A29","v":13},{"$f":"IF(ISBLANK('Team Info'!C29),\"\",'Team Info'!C29)","v":""},{"$f":"IF(ISBLANK('Team Info'!D29),\"\",'Team Info'!D29)","v":""},{"$f":"IF(ISBLANK('Team Info'!E29),\"\",'Team Info'!E29)","v":""}]
[{"$f":"'Team Info'!A30","v":14},{"$f":"IF(ISBLANK('Team Info'!C30),\"\",'Team Info'!C30)","v":""},{"$f":"IF(ISBLANK('Team Info'!D30),\"\",'Team Info'!D30)","v":""},{"$f":"IF(ISBLANK('Team Info'!E30),\"\",'Team Info'!E30)","v":""}]
[{"$f":"'Team Info'!A31","v":15},{"$f":"IF(ISBLANK('Team Info'!C31),\"\",'Team Info'!C31)","v":""},{"$f":"IF(ISBLANK('Team Info'!D31),\"\",'Team Info'!D31)","v":""},{"$f":"IF(ISBLANK('Team Info'!E31),\"\",'Team Info'!E31)","v":""}]
[{"$f":"'Team Info'!A32","v":16},{"$f":"IF(ISBLANK('Team Info'!C32),\"\",'Team Info'!C32)","v":""},{"$f":"IF(ISBLANK('Team Info'!D32),\"\",'Team Info'!D32)","v":""},{"$f":"IF(ISBLANK('Team Info'!E32),\"\",'Team Info'!E32)","v":""}]
[{"$f":"'Team Info'!A33","v":17},{"$f":"IF(ISBLANK('Team Info'!C33),\"\",'Team Info'!C33)","v":""},{"$f":"IF(ISBLANK('Team Info'!D33),\"\",'Team Info'!D33)","v":""},{"$f":"IF(ISBLANK('Team Info'!E33),\"\",'Team Info'!E33)","v":""}]
[{"$f":"'Team Info'!A34","v":18},{"$f":"IF(ISBLANK('Team Info'!C34),\"\",'Team Info'!C34)","v":""},{"$f":"IF(ISBLANK('Team Info'!D34),\"\",'Team Info'!D34)","v":""},{"$f":"IF(ISBLANK('Team Info'!E34),\"\",'Team Info'!E34)","v":""}]
[{"$f":"'Team Info'!A35","v":19},{"$f":"IF(ISBLANK('Team Info'!C35),\"\",'Team Info'!C35)","v":""},{"$f":"IF(ISBLANK('Team Info'!D35),\"\",'Team Info'!D35)","v":""},{"$f":"IF(ISBLANK('Team Info'!E35),\"\",'Team Info'!E35)","v":""}]
[{"$f":"'Team Info'!A36","v":20},{"$f":"IF(ISBLANK('Team Info'!C36),\"\",'Team Info'!C36)","v":""},{"$f":"IF(ISBLANK('Team Info'!D36),\"\",'Team Info'!D36)","v":""},{"$f":"IF(ISBLANK('Team Info'!E36),\"\",'Team Info'!E36)","v":""}]
[{"$f":"'Team Info'!A37","v":21},{"$f":"IF(ISBLANK('Team Info'!C37),\"\",'Team Info'!C37)","v":""},{"$f":"IF(ISBLANK('Team Info'!D37),\"\",'Team Info'!D37)","v":""},{"$f":"IF(ISBLANK('Team Info'!E37),\"\",'Team Info'!E37)","v":""}]
[{"$f":"'Team Info'!A38","v":22},{"$f":"IF(ISBLANK('Team Info'!C38),\"\",'Team Info'!C38)","v":""},{"$f":"IF(ISBLANK('Team Info'!D38),\"\",'Team Info'!D38)","v":""},{"$f":"IF(ISBLANK('Team Info'!E38),\"\",'Team Info'!E38)","v":""}]
[{"$f":"'Team Info'!A39","v":23},{"$f":"IF(ISBLANK('Team Info'!C39),\"\",'Team Info'!C39)","v":""},{"$f":"IF(ISBLANK('Team Info'!D39),\"\",'Team Info'!D39)","v":""},{"$f":"IF(ISBLANK('Team Info'!E39),\"\",'Team Info'!E39)","v":""}]
[{"$f":"'Team Info'!A40","v":24},{"$f":"IF(ISBLANK('Team Info'!C40),\"\",'Team Info'!C40)","v":""},{"$f":"IF(ISBLANK('Team Info'!D40),\"\",'Team Info'!D40)","v":""},{"$f":"IF(ISBLANK('Team Info'!E40),\"\",'Team Info'!E40)","v":""}]
[{"$f":"'Team Info'!A41","v":25},{"$f":"IF(ISBLANK('Team Info'!C41),\"\",'Team Info'!C41)","v":""},{"$f":"IF(ISBLANK('Team Info'!D41),\"\",'Team Info'!D41)","v":""},{"$f":"IF(ISBLANK('Team Info'!E41),\"\",'Team Info'!E41)","v":""}]
[{"$f":"'Team Info'!A42","v":26},{"$f":"IF(ISBLANK('Team Info'!C42),\"\",'Team Info'!C42)","v":""},{"$f":"IF(ISBLANK('Team Info'!D42),\"\",'Team Info'!D42)","v":""},{"$f":"IF(ISBLANK('Team Info'!E42),\"\",'Team Info'!E42)","v":""}]
[{"$f":"'Team Info'!A43","v":27},{"$f":"IF(ISBLANK('Team Info'!C43),\"\",'Team Info'!C43)","v":""},{"$f":"IF(ISBLANK('Team Info'!D43),\"\",'Team Info'!D43)","v":""},{"$f":"IF(ISBLANK('Team Info'!E43),\"\",'Team Info'!E43)","v":""}]
[{"$f":"'Team Info'!A44","v":28},{"$f":"IF(ISBLANK('Team Info'!C44),\"\",'Team Info'!C44)","v":""},{"$f":"IF(ISBLANK('Team Info'!D44),\"\",'Team Info'!D44)","v":""},{"$f":"IF(ISBLANK('Team Info'!E44),\"\",'Team Info'!E44)","v":""}]
[{"$f":"'Team Info'!A45","v":29},{"$f":"IF(ISBLANK('Team Info'!C45),\"\",'Team Info'!C45)","v":""},{"$f":"IF(ISBLANK('Team Info'!D45),\"\",'Team Info'!D45)","v":""},{"$f":"IF(ISBLANK('Team Info'!E45),\"\",'Team Info'!E45)","v":""}]
[{"$f":"'Team Info'!A46","v":30},{"$f":"IF(ISBLANK('Team Info'!C46),\"\",'Team Info'!C46)","v":""},{"$f":"IF(ISBLANK('Team Info'!D46),\"\",'Team Info'!D46)","v":""},{"$f":"IF(ISBLANK('Team Info'!E46),\"\",'Team Info'!E46)","v":""}]

{"sheet":"Team Contacts","index":6,"n_rows":39,"n_cols":7,"rows_kept":39,"cut":false,"hidden":false,"merged":[[3,1,3,3],[5,1,5,3]]}
[]
[{"$f":"\"Team Member Contact Info: \"&B4","v":"Team Member Contact Info: 0"}]
[]
["Team:",{"$f":"'Team Info'!C4","v":0}]
[]
["Region:",{"$f":"'Team Info'!C6","v":"Sunshine Coast"}]
[]
[]
["Playing No","First Name","Last Name","School","Parent Name","Parent Phone","Parent Email"]
[{"$f":"'Team Info'!A17","v":1},{"$f":"IF(ISBLANK('Team Info'!C17),\"\",'Team Info'!C17)","v":""},{"$f":"IF(ISBLANK('Team Info'!D17),\"\",'Team Info'!D17)","v":""},{"$f":"IF(ISBLANK('Team Info'!E17),\"\",'Team Info'!E17)","v":""}]
[{"$f":"'Team Info'!A18","v":2},{"$f":"IF(ISBLANK('Team Info'!C18),\"\",'Team Info'!C18)","v":""},{"$f":"IF(ISBLANK('Team Info'!D18),\"\",'Team Info'!D18)","v":""},{"$f":"IF(ISBLANK('Team Info'!E18),\"\",'Team Info'!E18)","v":""}]
[{"$f":"'Team Info'!A19","v":3},{"$f":"IF(ISBLANK('Team Info'!C19),\"\",'Team Info'!C19)","v":""},{"$f":"IF(ISBLANK('Team Info'!D19),\"\",'Team Info'!D19)","v":""},{"$f":"IF(ISBLANK('Team Info'!E19),\"\",'Team Info'!E19)","v":""}]
[{"$f":"'Team Info'!A20","v":4},{"$f":"IF(ISBLANK('Team Info'!C20),\"\",'Team Info'!C20)","v":""},{"$f":"IF(ISBLANK('Team Info'!D20),\"\",'Team Info'!D20)","v":""},{"$f":"IF(ISBLANK('Team Info'!E20),\"\",'Team Info'!E20)","v":""}]
[{"$f":"'Team Info'!A21","v":5},{"$f":"IF(ISBLANK('Team Info'!C21),\"\",'Team Info'!C21)","v":""},{"$f":"IF(ISBLANK('Team Info'!D21),\"\",'Team Info'!D21)","v":""},{"$f":"IF(ISBLANK('Team Info'!E21),\"\",'Team Info'!E21)","v":""}]
[{"$f":"'Team Info'!A22","v":6},{"$f":"IF(ISBLANK('Team Info'!C22),\"\",'Team Info'!C22)","v":""},{"$f":"IF(ISBLANK('Team Info'!D22),\"\",'Team Info'!D22)","v":""},{"$f":"IF(ISBLANK('Team Info'!E22),\"\",'Team Info'!E22)","v":""}]
[{"$f":"'Team Info'!A23","v":7},{"$f":"IF(ISBLANK('Team Info'!C23),\"\",'Team Info'!C23)","v":""},{"$f":"IF(ISBLANK('Team Info'!D23),\"\",'Team Info'!D23)","v":""},{"$f":"IF(ISBLANK('Team Info'!E23),\"\",'Team Info'!E23)","v":""}]
[{"$f":"'Team Info'!A24","v":8},{"$f":"IF(ISBLANK('Team Info'!C24),\"\",'Team Info'!C24)","v":""},{"$f":"IF(ISBLANK('Team Info'!D24),\"\",'Team Info'!D24)","v":""},{"$f":"IF(ISBLANK('Team Info'!E24),\"\",'Team Info'!E24)","v":""}]
[{"$f":"'Team Info'!A25","v":9},{"$f":"IF(ISBLANK('Team Info'!C25),\"\",'Team Info'!C25)","v":""},{"$f":"IF(ISBLANK('Team Info'!D25),\"\",'Team Info'!D25)","v":""},{"$f":"IF(ISBLANK('Team Info'!E25),\"\",'Team Info'!E25)","v":""}]
[{"$f":"'Team Info'!A26","v":10},{"$f":"IF(ISBLANK('Team Info'!C26),\"\",'Team Info'!C26)","v":""},{"$f":"IF(ISBLANK('Team Info'!D26),\"\",'Team Info'!D26)","v":""},{"$f":"IF(ISBLANK('Team Info'!E26),\"\",'Team Info'!E26)","v":""}]
[{"$f":"'Team Info'!A27","v":11},{"$f":"IF(ISBLANK('Team Info'!C27),\"\",'Team Info'!C27)","v":""},{"$f":"IF(ISBLANK('Team Info'!D27),\"\",'Team Info'!D27)","v":""},{"$f":"IF(ISBLANK('Team Info'!E27),\"\",'Team Info'!E27)","v":""}]
[{"$f":"'Team Info'!A28","v":12},{"$f":"IF(ISBLANK('Team Info'!C28),\"\",'Team Info'!C28)","v":""},{"$f":"IF(ISBLANK('Team Info'!D28),\"\",'Team Info'!D28)","v":""},{"$f":"IF(ISBLANK('Team Info'!E28),\"\",'Team Info'!E28)","v":""}]
[{"$f":"'Team Info'!A29","v":13},{"$f":"IF(ISBLANK('Team Info'!C29),\"\",'Team Info'!C29)","v":""},{"$f":"IF(ISBLANK('Team Info'!D29),\"\",'Team Info'!D29)","v":""},{"$f":"IF(ISBLANK('Team Info'!E29),\"\",'Team Info'!E29)","v":""}]
[{"$f":"'Team Info'!A30","v":14},{"$f":"IF(ISBLANK('Team Info'!C30),\"\",'Team Info'!C30)","v":""},{"$f":"IF(ISBLANK('Team Info'!D30),\"\",'Team Info'!D30)","v":""},{"$f":"IF(ISBLANK('Team Info'!E30),\"\",'Team Info'!E30)","v":""}]
[{"$f":"'Team Info'!A31","v":15},{"$f":"IF(ISBLANK('Team Info'!C31),\"\",'Team Info'!C31)","v":""},{"$f":"IF(ISBLANK('Team Info'!D31),\"\",'Team Info'!D31)","v":""},{"$f":"IF(ISBLANK('Team Info'!E31),\"\",'Team Info'!E31)","v":""}]
[{"$f":"'Team Info'!A32","v":16},{"$f":"IF(ISBLANK('Team Info'!C32),\"\",'Team Info'!C32)","v":""},{"$f":"IF(ISBLANK('Team Info'!D32),\"\",'Team Info'!D32)","v":""},{"$f":"IF(ISBLANK('Team Info'!E32),\"\",'Team Info'!E32)","v":""}]
[{"$f":"'Team Info'!A33","v":17},{"$f":"IF(ISBLANK('Team Info'!C33),\"\",'Team Info'!C33)","v":""},{"$f":"IF(ISBLANK('Team Info'!D33),\"\",'Team Info'!D33)","v":""},{"$f":"IF(ISBLANK('Team Info'!E33),\"\",'Team Info'!E33)","v":""}]
[{"$f":"'Team Info'!A34","v":18},{"$f":"IF(ISBLANK('Team Info'!C34),\"\",'Team Info'!C34)","v":""},{"$f":"IF(ISBLANK('Team Info'!D34),\"\",'Team Info'!D34)","v":""},{"$f":"IF(ISBLANK('Team Info'!E34),\"\",'Team Info'!E34)","v":""}]
[{"$f":"'Team Info'!A35","v":19},{"$f":"IF(ISBLANK('Team Info'!C35),\"\",'Team Info'!C35)","v":""},{"$f":"IF(ISBLANK('Team Info'!D35),\"\",'Team Info'!D35)","v":""},{"$f":"IF(ISBLANK('Team Info'!E35),\"\",'Team Info'!E35)","v":""}]
[{"$f":"'Team Info'!A36","v":20},{"$f":"IF(ISBLANK('Team Info'!C36),\"\",'Team Info'!C36)","v":""},{"$f":"IF(ISBLANK('Team Info'!D36),\"\",'Team Info'!D36)","v":""},{"$f":"IF(ISBLANK('Team Info'!E36),\"\",'Team Info'!E36)","v":""}]
[{"$f":"'Team Info'!A37","v":21},{"$f":"IF(ISBLANK('Team Info'!C37),\"\",'Team Info'!C37)","v":""},{"$f":"IF(ISBLANK('Team Info'!D37),\"\",'Team Info'!D37)","v":""},{"$f":"IF(ISBLANK('Team Info'!E37),\"\",'Team Info'!E37)","v":""}]
[{"$f":"'Team Info'!A38","v":22},{"$f":"IF(ISBLANK('Team Info'!C38),\"\",'Team Info'!C38)","v":""},{"$f":"IF(ISBLANK('Team Info'!D38),\"\",'Team Info'!D38)","v":""},{"$f":"IF(ISBLANK('Team Info'!E38),\"\",'Team Info'!E38)","v":""}]
[{"$f":"'Team Info'!A39","v":23},{"$f":"IF(ISBLANK('Team Info'!C39),\"\",'Team Info'!C39)","v":""},{"$f":"IF(ISBLANK('Team Info'!D39),\"\",'Team Info'!D39)","v":""},{"$f":"IF(ISBLANK('Team Info'!E39),\"\",'Team Info'!E39)","v":""}]
[{"$f":"'Team Info'!A40","v":24},{"$f":"IF(ISBLANK('Team Info'!C40),\"\",'Team Info'!C40)","v":""},{"$f":"IF(ISBLANK('Team Info'!D40),\"\",'Team Info'!D40)","v":""},{"$f":"IF(ISBLANK('Team Info'!E40),\"\",'Team Info'!E40)","v":""}]
[{"$f":"'Team Info'!A41","v":25},{"$f":"IF(ISBLANK('Team Info'!C41),\"\",'Team Info'!C41)","v":""},{"$f":"IF(ISBLANK('Team Info'!D41),\"\",'Team Info'!D41)","v":""},{"$f":"IF(ISBLANK('Team Info'!E41),\"\",'Team Info'!E41)","v":""}]
[{"$f":"'Team Info'!A42","v":26},{"$f":"IF(ISBLANK('Team Info'!C42),\"\",'Team Info'!C42)","v":""},{"$f":"IF(ISBLANK('Team Info'!D42),\"\",'Team Info'!D42)","v":""},{"$f":"IF(ISBLANK('Team Info'!E42),\"\",'Team Info'!E42)","v":""}]
[{"$f":"'Team Info'!A43","v":27},{"$f":"IF(ISBLANK('Team Info'!C43),\"\",'Team Info'!C43)","v":""},{"$f":"IF(ISBLANK('Team Info'!D43),\"\",'Team Info'!D43)","v":""},{"$f":"IF(ISBLANK('Team Info'!E43),\"\",'Team Info'!E43)","v":""}]
[{"$f":"'Team Info'!A44","v":28},{"$f":"IF(ISBLANK('Team Info'!C44),\"\",'Team Info'!C44)","v":""},{"$f":"IF(ISBLANK('Team Info'!D44),\"\",'Team Info'!D44)","v":""},{"$f":"IF(ISBLANK('Team Info'!E44),\"\",'Team Info'!E44)","v":""}]
[{"$f":"'Team Info'!A45","v":29},{"$f":"IF(ISBLANK('Team Info'!C45),\"\",'Team Info'!C45)","v":""},{"$f":"IF(ISBLANK('Team Info'!D45),\"\",'Team Info'!D45)","v":""},{"$f":"IF(ISBLANK('Team Info'!E45),\"\",'Team Info'!E45)","v":""}]
[{"$f":"'Team Info'!A46","v":30},{"$f":"IF(ISBLANK('Team Info'!C46),\"\",'Team Info'!C46)","v":""},{"$f":"IF(ISBLANK('Team Info'!D46),\"\",'Team Info'!D46)","v":""},{"$f":"IF(ISBLANK('Team Info'!E46),\"\",'Team Info'!E46)","v":""}]

{"sheet":"Sheet2","index":7,"n_rows":250,"n_cols":55,"rows_kept":250,"cut":false,"hidden":true,"merged":[]}
["Team data",null,null,null,null,null,null,null,null,"AFLT","AFLB","BaseballT","BaseballB","BasketballT","BasketballB","CricketT","CricketB","FootballT","FootballB","FutsalT","FutsalB","GolfT","GolfB","HockeyT","HockeyB","gHockeyT","gHockeyB","NetballT","NetballB","RLT","RLB","RUT","RUB","SoftballT","SoftballB","SurfingT","SurfingB","SwimmingT","SwimmingB","TennisT","TennisB","TouchT","TouchB","gTouchT","gTouchB","VolleyballT","VolleyballB","gVolleyballT","gVolleyballB","WPT","WPB","WPT","WPB","NBT","NBB"]
["Australian Football (10-12 boys)","Australian Football","10-12","boys","Playing Top Size","Playing Bottom Size","AFLT","AFLB",null,"-","-","-","-","-","-","-","-","-","-","-","-","-","N/A","-","-","-","-","-","N/A","-","-","-","-","-","N/A","N/A","N/A","N/A","N/A","-","N/A","-","-","-","-","-","-","-","N/A","N/A","3XS","6","N/A","C08","C08"]
["Australian Football (10-12 girls)","Australian Football","10-12","girls","Playing Top Size","Playing Bottom Size","AFLT","AFLB",null,"C08","C08","C08","C08","C08","C08","C08","C08","C08","C08","C08","C08","C08",null,"C08","C08","C08","C10","C08","-","K8","24","C10","C10","C08",null,null,null,null,null,"C08",null,"C08","C08","C08","C08","C08","C08","C08",null,null,"2XS","8",null,"C10","C10"]
["Australian Football (13-15 boys)","Australian Football","13-15","boys","Playing Top Size","Playing Bottom Size","AFLT","AFLB",null,"C10","C10","C10","C10","C10","C10","C10","C10","C10","C10","C10","C10","C10",null,"C10","C10","C10","C12","C10","K8","K10","26","C12","C12","C10",null,null,null,null,null,"C10",null,"C10","C10","C10","C10","C10","C10","C10",null,null,"XS","10",null,"C12","C12"]
["Australian Football (13-15 girls)","Australian Football","13-15","girls","Playing Top Size","Playing Bottom Size","AFLT","AFLB",null,"C12","C12","C12","C12","C12","C12","C12","C12","C12","C12","C12","C12","C12",null,"C12","C12","C12","C14","C12","K10","K12","28","C14","C14","C12",null,null,null,null,null,"C12",null,"C12","C12","C12","C12","C12","C12","C12",null,null,"S","12",null,"C14","C14"]
["Baseball (12-14 years)","Baseball","12-14","boys & girls","Overshirt Size","Undershirt Size","BaseballT","BaseballB",null,"C14","C14","C14","C14","C14","C14","C14","C14","C14","C14","C14","C14","C14",null,"C14","C14","C14","L08","C14","K12","K14","30","C16","2XS","C14",null,null,null,null,null,"C14",null,"C14","C14","L8","C14","C14","C14","L8",null,null,"M","14",null,"2XS","XS"]
["Baseball (15-18 years)","Baseball","15-18","boys & girls","Overshirt Size","Undershirt Size","BaseballT","BaseballB",null,"XS","XS","XS","XS","XS","XS","L08","L08","L08","L08","L08","L08","L08",null,"XS","XS","L08","L10","L08","K14","XS","32","XS","XS","L08",null,null,null,null,null,"L08",null,"XS","XS","L10","XS","XS","XS","L10",null,null,"L","16",null,"XS","S"]
["Basketball (10-12 boys)","Basketball","10-12 ","boys","Playing Top Size","Playing Bottom Size","BasketballT","BasketballB",null,"S","S","S","S","S","S","L10","L10","L10","L10","L10","L10","L10",null,"S","S","L10","L12","L10","XS","S","34","S","S","L10",null,null,null,null,null,"L10",null,"S","S","L12","S","S","S","L12",null,null,"XL","18",null,"S","M"]
["Basketball (10-12 girls)","Basketball","10-12","girls","Playing Top Size","Playing Bottom Size","BasketballT","BasketballB",null,"M","M","M","M","M","M","L12","L12","L12","L12","L12","L12","L12",null,"M","M","L12","L14","L12","S","M","36","M","M","L12",null,null,null,null,null,"L12",null,"M","M","L14","M","M","M","L14",null,null,"2XL",null,null,"M","L"]
["Basketball (13-16 boys)","Basketball","13-16","boys","Playing Top Size","Playing Bottom Size","BasketballT","BasketballB",null,"L","L","L","L","L","L","L14","L14","L14","L14","L14","L14","L14",null,"L","L","L14","L16","L14","M","L","38","L","L","L14",null,null,null,null,null,"L14",null,"L","L","L16","L","L","L","L16",null,null,null,null,null,"L","XL"]
["Basketball (13-16 girls)","Basketball","13-16","girls","Playing Top Size","Playing Bottom Size","BasketballT","BasketballB",null,"XL","XL","XL","XL","XL","XL","L16","L16","L16","L16","L16","L16","L16",null,"XL","XL","L16","L18","L16","L","XL","40","XL","XL","L16",null,null,null,null,null,"L16",null,"XL","XL","L18","XL","XL","XL","L18",null,null,null,null,null,"XL","2XL"]
["Basketball (17-19 boys)","Basketball","17-19","boys","Playing Top Size","Playing Bottom Size","BasketballT","BasketballB",null,"2XL","2XL","2XL","2XL","2XL","2XL","L18","L18","L18","L18","L18","L18","L18",null,"2XL","2XL","L18","L20","L18","XL","2XL","42","2XL","2XL","L18",null,null,null,null,null,"L18",null,"2XL","2XL","L20","2XL","2XL","2XL","L20",null,null,null,null,null,"2XL"]
["Basketball (17-19 girls)","Basketball","17-19","girls","Playing Top Size","Playing Bottom Size","BasketballT","BasketballB",null,"3XL",null,"3XL","3XL","3XL",null,"L20","L20","L20","L20","L20","L20","L20",null,"3XL",null,"L20",null,"L20","2XL","3XL","44","3XL","3XL","L20",null,null,null,null,null,"L20",null,"3XL",null,null,null,"3XL"]
["Cricket (10-12 boys)","Cricket","10-12","boys","Short Sleeve Size","Long Sleeve Size","CricketT","CricketB",null,"4XL",null,"4XL","4XL","4XL",null,"XS","XS","XS","XS","XS","XS","XS",null,"4XL",null,null,null,null,"3XL","4XL","46","4XL",null,"XS",null,null,null,null,null,"XS",null,"4XL",null,null,null,"4XL"]
["Cricket (10-12 girls)","Cricket","10-12","girls","Short Sleeve Size","Long Sleeve Size","CricketT","CricketB",null,null,null,null,null,null,null,"S","S","S","S","S","S","S",null,null,null,null,null,null,"4XL","5XL","48","5XL",null,"S",null,null,null,null,null,"S"]
["Cricket (13-15 boys)","Cricket","13-15","boys","Short Sleeve Size","Long Sleeve Size","CricketT","CricketB",null,null,null,null,null,null,null,"M","M","M","M","M","M","M",null,null,null,null,null,null,"5XL",null,"50",null,null,"M",null,null,null,null,null,"M"]
["Cricket (13-15 girls)","Cricket","13-15","girls","Short Sleeve Size","Long Sleeve Size","CricketT","CricketB",null,null,null,null,null,null,null,"L","L","L","L","L","L","L",null,null,null,null,null,null,null,null,"52",null,null,"L",null,null,null,null,null,"L"]
["Cricket (16-19 boys)","Cricket","16-19","boys","Short Sleeve Size","Long Sleeve Size","CricketT","CricketB",null,null,null,null,null,null,null,"XL","XL","XL","XL","XL","XL","XL",null,null,null,null,null,null,null,null,"54",null,null,"XL",null,null,null,null,null,"XL"]
["Cricket (16-19 girls)","Cricket","16-19","girls","Short Sleeve Size","Long Sleeve Size","CricketT","CricketB",null,null,null,null,null,null,null,"2XL","2XL","2XL","2XL","2XL","2XL","2XL",null,null,null,null,null,null,null,null,null,null,null,"2XL",null,null,null,null,null,"2XL"]
["Football (10-12 boys)","Football","10-12","boys","Playing Top Size","Playing Bottom Size","FootballT","FootballB",null,null,null,null,null,null,null,"3XL","3XL","3XL",null,"3XL",null,"3XL",null,null,null,null,null,null,null,null,null,null,null,"3XL",null,null,null,null,null,"3XL"]
["Football (10-12 girls)","Football","10-12","girls","Playing Top Size","Playing Bottom Size","FootballT","FootballB",null,null,null,null,null,null,null,"4XL","4XL","4XL",null,"4XL",null,"4XL",null,null,null,null,null,null,null,null,null,null,null,"4XL",null,null,null,null,null,"4XL"]
["Football (13-15 girls)","Football","13-15","girls","Playing Top Size","Playing Bottom Size","FootballT","FootballB"]
["Football (13-16 boys)","Football","13-16","boys","Playing Top Size","Playing Bottom Size","FootballT","FootballB"]
["Football (16-19 girls)","Football","16-19","girls","Playing Top Size","Playing Bottom Size","FootballT","FootballB"]
["Football (17-19 boys)","Football","17-19","boys","Playing Top Size","Playing Bottom Size","FootballT","FootballB"]
["Futsal (13-14 boys)","Futsal","13-14","boys","Playing Top Size","Playing Bottom Size","FutsalT","FutsalB"]
["Futsal (13-14 girls)","Futsal","13-14","girls","Playing Top Size","Playing Bottom Size","FutsalT","FutsalB"]
["Futsal (15-16 boys)","Futsal","13-14","boys","Playing Top Size","Playing Bottom Size","FutsalT","FutsalB"]
["Futsal (15-15 girls)","Futsal","13-14","girls","Playing Top Size","Playing Bottom Size","FutsalT","FutsalB"]
["Golf (10-12 years)","Golf","10-12","boys & girls","Playing Top Size","Playing Bottom Size","GolfT","GolfB"]
["Golf (13-19 years)","Golf","13-19","boys & girls","Playing Top Size","Playing Bottom Size","GolfT","GolfB"]
["Hockey (10-12 boys)","Hockey","10-12","boys","Playing Top Size","Playing Bottom Size","HockeyT","HockeyB"]
["Hockey (10-12 girls)","Hockey","10-12","girls","Playing Top Size","Playing Bottom Size","gHockeyT","gHockeyB"]
["Hockey (13-15 boys)","Hockey","13-19","boys","Playing Top Size","Playing Bottom Size","HockeyT","HockeyB"]
["Hockey (13-15 girls)","Hockey","13-19","girls","Playing Top Size","Playing Bottom Size","gHockeyT","gHockeyB"]
["Hockey (16-19 boys)","Hockey","13-19","boys","Playing Top Size","Playing Bottom Size","HockeyT","HockeyB"]
["Hockey (16-19 girls)","Hockey","13-19","girls","Playing Top Size","Playing Bottom Size","gHockeyT","gHockeyB"]
["Netball (10-11 years)","Netball","10-11","boys & girls","Playing Top Size","Playing Bottom Size","NetballT","NetballB"]
["Netball (10-12 boys)","Netball","10-12","boys","Playing Top Size","Playing Bottom Size","NBT","NBB"]
["Netball (10-12 years)","Netball","10-12","girls","Playing Top Size","Playing Bottom Size","NetballT","NetballB"]
["Netball (13-15 years)","Netball","13-15","boys & girls","Playing Top Size","Playing Bottom Size","NetballT","NetballB"]
["Netball (16-19 years)","Netball","16-19","boys & girls","Playing Top Size","Playing Bottom Size","NetballT","NetballB"]
["Rugby League (10-11 years)","Rugby League","10-11","boys & girls","Playing Top Size","Playing Bottom Size","RLT","RLB"]
["Rugby League (11-12 years)","Rugby League","11-12","boys & girls","Playing Top Size","Playing Bottom Size","RLT","RLB"]
["Rugby League (11-12 girls)","Rugby League","11-12","girls","Playing Top Size","Playing Bottom Size","RLT","RLB"]
["Rugby League (14-15 boys)","Rugby League","14-15","boys","Playing Top Size","Playing Bottom Size","RLT","RLB"]
["Rugby League (14-15 girls)","Rugby League","14-15","girls","Playing Top Size","Playing Bottom Size","RLT","RLB"]
["Rugby League (16-18 boys)","Rugby League","16-18","boys","Playing Top Size","Playing Bottom Size","RLT","RLB"]
["Rugby League (16-18 girls)","Rugby League","16-18","girls","Playing Top Size","Playing Bottom Size","RLT","RLB"]
["Rugby Union (11-12 years)","Rugby Union","11-12","boys & girls","Playing Top Size","Playing Bottom Size","RUT","RUB"]
["Rugby Union (14-15 boys)","Rugby Union","14-15","boys","Playing Top Size","Playing Bottom Size","RUT","RUB"]
["Rugby Union (17-18 boys)","Rugby Union","17-18","boys","Playing Top Size","Playing Bottom Size","RUT","RUB"]
["Rugby Union 7s (15-16 girls)","Rugby Union 7s","15-16","girls","Playing Top Size","Playing Bottom Size","RUT","RUB"]
["Rugby Union 7s (17-18 girls)","Rugby Union 7s","17-18","girls","Playing Top Size","Playing Bottom Size","RUT","RUB"]
["Softball (10-12 boys)","Softball","10-12","boys","Playing Top Size","Playing Bottom Size","SoftballT","SoftballB"]
["Softball (10-12 girls)","Softball","10-12","girls","Playing Top Size","Playing Bottom Size","SoftballT","SoftballB"]
["Softball (13-19 boys)","Softball","13-19","boys","Playing Top Size","Playing Bottom Size","SoftballT","SoftballB"]
["Softball (13-19 girls)","Softball","13-19","girls","Playing Top Size","Playing Bottom Size","SoftballT","SoftballB"]
["Surfing (13-19 years)","Sufting","13-19","boys & girls","Playing Top Size","Playing Bottom Size","SurfingT","SurfingB"]
["Swimming (10-12 years)","Swimming","10-12","boys & girls","Playing Top Size","Playing Bottom Size","SwimmingT","SwimmingB"]
["Swimming (13-19 years)","Swimming","13-19","boys & girls","Playing Top Size","Playing Bottom Size","SwimmingT","SwimmingB"]
["Tennis (10-12 years)","Tennis","10-12","boys & girls","Playing Top Size","Playing Bottom Size","TennisT","TennisB"]
["Tennis (13-19 years)","Tennis","13-19","boys & girls","Playing Top Size","Playing Bottom Size","TennisT","TennisB"]
["Touch (10-12 boys)","Touch","10-12","boys","Playing Top Size","Playing Bottom Size","TouchT","TouchB"]
["Touch (10-12 girls)","Touch","10-12","girls","Playing Top Size","Playing Bottom Size","gTouchT","gTouchB"]
["Touch (13-15 boys)","Touch","13-15","boys","Playing Top Size","Playing Bottom Size","TouchT","TouchB"]
["Touch (13-15 girls)","Touch","13-15","girls","Playing Top Size","Playing Bottom Size","gTouchT","gTouchB"]
["Touch (16-18 boys)","Touch","16-18","boys","Playing Top Size","Playing Bottom Size","TouchT","TouchB"]
["Touch (16-18 girls)","Touch","16-18","girls","Playing Top Size","Playing Bottom Size","gTouchT","gTouchB"]
["Volleyball (12-15 boys)","Volleyball","12-15","boys","Playing Top Size","Playing Bottom Size","gVolleyballT","gVolleyballB"]
["Volleyball (12-15 girls)","Volleyball","12-15","girls","Playing Top Size","Playing Bottom Size","VolleyballT","VolleyballB"]
["Volleyball (16-19 boys)","Volleyball","16-19","boys","Playing Top Size","Playing Bottom Size","VolleyballT","VolleyballB"]
["Volleyball (16-19 girls)","Volleyball","16-19","girls","Playing Top Size","Playing Bottom Size","gVolleyballT","gVolleyballB"]
["Water Polo (13-19 boys)","Water Polo","13-19","boys","Playing Top Size","Playing Bottom Size","WPT","WPB"]
["Water Polo (13-19 girls)","Water Polo","13-19","girls","Playing Top Size","Playing Bottom Size","gWPT","gWPB"]
[]
["SCHOOL LIST"]
["Schools","Email Contact"]
["Alta-1 College (Caboolture)","admin@alta-1.qld.edu.au"]
["Arethusa College (Deception Bay)","admin@arethusa.qld.edu.au"]
["Australian Christian College - Moreton","moreton@acc.edu.au"]
["Australian Industry Trade College - Maroochydore","sunshinecoast@aitc.qld.edu.au"]
["Australian Trade College North Brisbane","info@tradecollege.com.au"]
["Banksia Beach SS","principal@banksiabeachss.eq.edu.au"]
["Baringa State Primary School","principal@baringass.eq.edu.au"]
["Baringa State Secondary College","principal@baringassc.eq.edu.au"]
["Beachmere SS","principal@beachmeress.eq.edu.au"]
["Beerburrum SS","principal@beerburrumss.eq.edu.au"]
["Beerwah SHS","principal@beerwahshs.eq.edu.au"]
["Beerwah SS","principal@beerwahss.eq.edu.au"]
["Bellmere SS","principal@bellmeress.eq.edu.au"]
["Birali Steiner School (Beachmere)","info@biralisteiner.qld.edu.au"]
["Blackall Range Independent School","office1@brischool.com.au"]
["Bli Bli SS","principal@blibliss.eq.edu.au"]
["Bribie Island SHS","principal@bribieislandshs.eq.edu.au"]
["Bribie Island SS","principal@bribieislandss.eq.edu.au"]
["Brightwater SS","principal@brightwaterss.eq.edu.au"]
["Buddina SS","principal@buddinass.eq.edu.au"]
["Buderim Mountain SS","principal@buderimmountainss.eq.edu.au"]
["Burnside SHS","principal@burnsideshs.eq.edu.au"]
["Burnside SS","principal@burnsidess.eq.edu.au"]
["Burpengary Meadows SS","principal@burpengarymeadowsss.eq.edu.au"]
["Burpengary SS","principal@burpengaryss.eq.edu.au"]
["Caboolture East SS","principal@cabooltureeastss.eq.edu.au"]
["Caboolture Montessori School","business.services@cms.qld.edu.au"]
["Caboolture Special School","principal@caboolturespecs.eq.edu.au"]
["Caboolture SHS","principal@cabooltureshs.eq.edu.au"]
["Caboolture SS","principal@caboolturess.eq.edu.au"]
["Caloundra Christian College","general@calcc.qld.edu.au"]
["Caloundra City Private School","admin@ccps.qld.edu.au"]
["Caloundra SHS","principal@caloundrashs.eq.edu.au"]
["Caloundra SS","principal@caloundrass.eq.edu.au"]
["Carmichael College","admin@carmichael.qld.edu.au"]
["Chancellor State College","principal@chancellorsc.eq.edu.au"]
["Chevallum SS","principal@chevallumss.eq.edu.au"]
["Christ the King Catholic Primary School","pdeceptionbay@bne.catholic.edu.au"]
["Clontarf Beach SHS","principal@clontarfbeachshs.eq.edu.au"]
["Clontarf Beach SS","principal@clontarfbeachss.eq.edu.au"]
["Conondale SS","principal@conondaless.eq.edu.au"]
["Coolum Beach Christian College","admin@cbcc.qld.edu.au"]
["Coolum SHS","principal@coolumshs.eq.edu.au"]
["Coolum SS","principal@coolumss.eq.edu.au"]
["Cooran SS","principal@cooranss.eq.edu.au"]
["Cooroy SS","principal@cooroyss.eq.edu.au"]
["Currimundi Special School","principal@currimundispecs.eq.edu.au"]
["Currimundi SS","principal@currimundiss.eq.edu.au"]
["Deception Bay Flexible Learning Centre","paul.flanders@youthplus.edu.au"]
["Deception Bay North SS","principal@deceptionbaynorthss.eq.edu.au"]
["Deception Bay SHS","principal@deceptionbayshs.eq.edu.au"]
["Deception Bay SS","principal@deceptionbayss.eq.edu.au"]
["Delaneys Creek SS","principal@delaneyscreekss.eq.edu.au"]
["Elimbah SS","principal@elimbahss.eq.edu.au"]
["Eudlo SS","principal@eudloss.eq.edu.au"]
["Eumundi SS","principal@eumundiss.eq.edu.au"]
["Federal SS","principal@federalss.eq.edu.au"]
["Glass House Mountains SS","principal@glasshousemountainsss.eq.edu.au"]
["Glasshouse Christian College","michelle.boroughs@glasshouse.qld.edu.au"]
["Glenview SS","principal@glenviewss.eq.edu.au"]
["Golden Beach SS","principal@goldenbeachss.eq.edu.au"]
["Good Samaritan Catholic College","psblibli@bne.catholic.edu.au"]
["Good Shepherd Lutheran College","gslc@gslc.qld.edu.au"]
["Grace Lutheran College (Rothwell)","grace@glc.qld.edu.au"]
["Grace Lutheran College (Caboolture)","grace@glc.qld.edu.au"]
["Grace Lutheran Primary School","graceadmin@glps.qld.edu.au"]
["Hercules Road SS","principal@herculesroadss.eq.edu.au"]
["Home School / Other Distance Ed"]
["Horizons College of Learning and Enrichment","info@horizonscollege.qld.edu.au"]
["Humpybong SS","principal@humpybongss.eq.edu.au"]
["Immanuel Lutheran College","ilc@immanuel.qld.edu.au"]
["Jinibara SS","principal@jinibarass.eq.edu.au"]
["Kairos Community College","info@kairoscc.org.au"]
["Kawana Waters State College","principal@kawanawaterssc.eq.edu.au"]
["Kenilworth State Community College","principal@kenilworthscc.eq.edu.au"]
["Kilcoy SHS","principal@kilcoyshs.eq.edu.au"]
["Kilcoy SS","principal@kilcoyss.eq.edu.au"]
["Kin Kin SS","principal@kinkinss.eq.edu.au"]
["Kippa-Ring SS","principal@kipparingss.eq.edu.au"]
["Kuluin SS","principal@kuluinss.eq.edu.au"]
["Landsborough SS","principal@landsborss.eq.edu.au"]
["Maleny Independent School","admin@mis.qld.edu.au"]
["Maleny SHS","principal@malenyshs.eq.edu.au"]
["Maleny SS","principal@malenyss.eq.edu.au"]
["Mapleton SS","principal@mapletonss.eq.edu.au"]
["Maroochydore SHS","principal@maroochydoreshs.eq.edu.au"]
["Maroochydore SS","principal@maroochydoress.eq.edu.au"]
["Matthew Flinders Anglican College","flinders@mfac.edu.au"]
["Meridan State College","principal@meridansc.eq.edu.au"]
["Minimbah SS","principal@minimbahss.eq.edu.au"]
["Montessori International College","admin@montessori.qld.edu.au"]
["Montessori Noosa","montessorinoosa@gmail.com"]
["Montville SS","principal@montvilless.eq.edu.au"]
["Mooloolaba SS","principal@mooloolabass.eq.edu.au"]
["Mooloolah SS","principal@mooloolahss.eq.edu.au"]
["Morayfield East SS","principal@morayfieldeastss.eq.edu.au"]
["Morayfield SHS","principal@morayfieldshs.eq.edu.au"]
["Morayfield SS","principal@morayfieldss.eq.edu.au"]
["Moreton Downs SS","principal@moretondownsss.eq.edu.au"]
["Mount Kilcoy SS","principal@mtkilcoyss.eq.edu.au"]
["Mount Mee SS","principal@mtmeess.eq.edu.au"]
["Mountain Creek SHS","principal@mountaincreekshs.eq.edu.au"]
["Mountain Creek SS","principal@mtncreekss.eq.edu.au"]
["Mueller College (Rothwell)","admin@mueller.qld.edu.au"]
["Nambour Christian College","info@ncc.qld.edu.au"]
["Nambour Special School","principal@nambourspecs.eq.edu.au"]
["Nambour State College","principal@namboursc.eq.edu.au"]
["Narangba SS","principal@narangbass.eq.edu.au"]
["Narangba Valley SHS","principal@narangbavalleyshs.eq.edu.au"]
["Narangba Valley SS","principal@narangbavalleyss.eq.edu.au"]
["Noosa Christian College","info@noosacc.qld.edu.au"]
["Noosa District SHS","principal@noosadistrictshs.eq.edu.au"]
["Noosa Flexible Learning Centre","paul.flanders@youthplus.edu.au"]
["Noosa Pengari Steiner School","enquiries@noosasteiner.qld.edu.au"]
["Noosaville SS","principal@noosavilless.eq.edu.au"]
["North Arm SS","principal@northarmss.eq.edu.au"]
["Our Lady of the Rosary School","OLRCaloundraSport@bne.catholic.edu.au"]
["Pacific Lutheran College","admin@pacluth.qld.edu.au"]
["Pacific Paradise SS","principal@pacificparadisess.eq.edu.au"]
["Palmwoods SS","principal@palmwoodsss.eq.edu.au"]
["Palmview State Primary School","principal@palmviewss.eq.edu.au"]
["Palmview State Special School","principal@palmviewspecs.eq.edu.au"]
["Peachester SS","principal@peachesterss.eq.edu.au"]
["Peregian Beach College","admin@pbc.qld.edu.au"]
["Peregian Springs SS","principal@peregianspringsss.eq.edu.au"]
["Pomona SS","principal@pomonass.eq.edu.au"]
["Pumicestone SS","principal@pumicestoness.eq.edu.au"]
["Queensland Pathways State College","principal@qpsc.eq.edu.au"]
["Redcliffe Special School","principal@redcliffespecs.eq.edu.au"]
["Redcliffe SHS","principal@redcliffeshs.eq.edu.au"]
["Redwood College","info@rc.qld.edu.au"]
["Scarborough SS","principal@scarboroughss.eq.edu.au"]
["Siena Catholic College","ssippydowns@bne.catholic.edu.au"]
["Siena Catholic Primary School","psippydowns@bne.catholic.edu.au"]
["Southern Cross Catholic College","psscarborough@bne.catholic.edu.au"]
["St Andrew's Anglican College","civey@saac.qld.edu.au"]
["St Columban's College","scaboolture@bne.catholic.edu.au"]
["St Eugene College","pburpengary@bne.catholic.edu.au"]
["St John's College","pmrogers@bne.catholic.edu.au"]
["St Joseph's Primary School","pnambour@bne.catholic.edu.au"]
["St Michael's College","admin@smccab.qld.edu.au"]
["St Paul's Lutheran Primary School","postmaster@stpaulslps.qld.edu.au"]
["St Peter's Catholic Primary School","pcaboolture@bne.catholic.edu.au"]
["St Teresa's Catholic College","snoosaville@bne.catholic.edu.au"]
["St Thomas More Primary School","psunshinebeach@bne.catholic.edu.au"]
["Stella Maris School","pmaroochydore@bne.catholic.edu.au"]
["Suncoast Christian College","info@suncoastcc.qld.edu.au"]
["Sunshine Beach SHS","principal@sunshinebeachhigh.eq.edu.au"]
["Sunshine Beach SS","principal@sunshinebeachss.eq.edu.au"]
["Sunshine Coast Grammar School","enquire@scgs.qld.edu.au"]
["Talara Primary College","principal@talacollss.eq.edu.au"]
["Tewantin SS","principal@tewantinss.eq.edu.au"]
["The River School","admin@riverschool.com.au"]
["Tullawong SHS","principal@tullawongshs.eq.edu.au"]
["Tullawong SS","principal@tullawongss.eq.edu.au"]
["Unity College","pscaloundra@bne.catholic.edu.au"]
["Wamuran SS","principal@wamuranss.eq.edu.au"]
["Woodford SS","principal@woodfordss.eq.edu.au"]
["Woody Point Special School","principal@woodypointspecs.eq.edu.au"]
["Woombye SS","principal@woombyess.eq.edu.au"]
["Yandina SS","principal@yandinass.eq.edu.au"]
["Capricornia School Sport","capsport@qed.qld.gov.au"]
["Darling Downs School Sport","admin@ddschoolsport.eq.edu.au"]
["Metropolitan East School Sport","met.east@qed.qld.gov.au"]
["Metropolitan North School Sport","met.north@qed.qld.gov.au"]
["Metropolitan West School Sport","met.west@qed.qld.gov.au"]
["North Western School Sport","linda.ashburn@qed.qld.gov.au"]
["Northern School Sport","admin.northernsport@qed.qld.gov.au"]
["Peninsula School Sport","pensport@qed.qld.gov.au"]
["South Coast School Sport","admin@southcoastschoolsport.eq.edu.au"]
["South West School Sport","tim.leadbetter@qed.qld.gov.au"]
["Wide Bay School Sport","wbssport@qed.qld.gov.au"]